Workbook

Sheet 1. Info
AB1: Alectra Utilities Corporation - Enersource Hydro
AB2: Alectra Utilities Corporation - Horizon Utilities
AB3: Alectra Utilities Corporation - Hydro One Brampton
AB4: Alectra Utilities Corporation - PowerStream Inc.
AB5: Algoma Power Inc.
AB6: Atikokan Hydro Inc.
AB7: Attawapiskat Power Corp.
AB8: Bluewater Power Distribution Corporation
AB9: Brantford Power Inc.
AB10: Burlington Hydro Inc.
AB11: Canadian Niagara Power Inc.
AB12: Centre Wellington Hydro Ltd.
A13: Drop-down lists are shaded blue; Input cells are shaded green. | AB13: Chapleau Public Utilities Corporation
AB14: Clinton Power Corporation
C15: Utility Name | D15: Erie Thames Powerlines Corporation | AB15: COLLUS PowerStream Corporation
AB16: Cooperative Hydro Embrun Inc.
C17: Service Territory | AB17: E.L.K. Energy Inc.
AB18: Energy + Inc.
C19: Assigned EB Number | D19: EB-2017-0038 | AB19: Entegrus Powerlines Inc.
AB20: ENWIN Utilities Ltd.
C21: Name and Title | D21: Graig Pettit | AB21: Erie Thames Powerlines Corporation
AB22: Espanola Regional Hydro Distribution Corporation
C23: Phone Number | D23: 519-485-1820 Ext 254 | AB23: Essex Powerlines Corporation
AB24: Festival Hydro Inc.
C25: Email Address | D25: gpettit@eriethamespower.com | AB25: Fort Albany Power Corporation
AB26: Fort Frances Power Corporation
C27: Date | D27: 2018-02-26 | AB27: Greater Sudbury Hydro Inc.
AB28: Grimsby Power Inc.
C29: Last COS Re-based Year | D29: 2012 | AB29: Guelph Hydro Electric Systems Inc.
AB30: Halton Hills Hydro Inc.
AB31: Hearst Power Distribution Company Limited
AB32: Hydro 2000 Inc.
AB33: Hydro Hawkesbury Inc.
AB34: Hydro One Networks Inc.
AB35: Hydro One Networks Inc. - Haldimand County Hydro
AB36: Hydro One Networks Inc. - Norfolk Hydro
AB37: Hydro One Networks Inc. - Woodstock Hydro
AB38: Hydro One Remote Communities Inc.
AB39: Hydro Ottawa Limited
AB40: Innpower Corporation
AB41: Kashechewan Power Corporation
AB42: Kenora Hydro Electric Corporation Ltd.
AB43: Kingston Hydro Corporation
AB44: Kitchener-Wilmot Hydro Inc.
AB45: Lakefront Utilities Inc.
AB46: Lakeland Power Distribution Ltd.
AB47: London Hydro Inc.
AB48: Midland Power Utility Corporation
AB49: Milton Hydro Distribution inc.
AB50: Newmarket - Tay Power Distribution Ltd.
AB51: Niagara Peninsula Energy Inc.
AB52: Niagara-on-the-Lake Hydro Inc.
AB53: North Bay Hydro Distribution Limited
AB54: Northern Ontario Wires Inc.
AB55: Oakville Hydro Electricity Distribution Inc.
AB56: Orangeville Hydro Limited
AB57: Orillia Power Distribution Corporation
AB58: Oshawa PUC Networks Inc.
AB59: Ottawa River Power Corporation
AB60: Peterborough Distribution Incorporated
AB61: PUC Distribution Inc.
AB62: Renfrew Hydro Inc.
AB63: Rideau St. Lawrence Distribution Inc.
AB64: Sioux Lookout Hydro Inc.
AB65: St. Thomas Energy Inc.
AB66: Thunder Bay Hydro Electricity Distribution Inc.
AB67: Tillsonburg Hydro Inc.
AB68: Toronto Hydro-Electric System Limited
AB69: Veridian Connections Inc.
AB70: Wasaga Distribution Inc.
AB71: Waterloo North Hydro Inc.
AB72: Welland Hydro Electric System Corp.
AB73: Wellington North Power Inc.
AB74: West Coast Huron Energy Inc.
AB75: Westario Power Inc.
AB76: Whitby Hydro Electric Corporation

Sheet 2. Table of Contents
D20: 1. Info | I20: 6. Historical Wholesale
D22: 2. Table of Contents | I22: 7. Current Wholesale
D24: 3. Rate Classes | I24: 8. Forecast Wholesale
D26: 4. RRR Data | I26: 9. RTSR Rates to Forecast
D28: 5. UTRs and Sub-Transmission

Sheet 3. Rate Classes
C13: 1. Select the appropriate rate classes that appear on your most recent Board-Approved Tariff of Rates and Charges. 2. Enter the RTS Network and Connection Rate as it appears on the Tariff of Rates and Charges
C15: Rate Class | E15: Unit | G15: RTSR-Network | I15: RTSR-Connection
C17: Residential | E17: kWh | G17: 0.0063 | I17: 0.0056 | L17: =IF(OR(ISBLANK(C17), ISERROR(FIND("Choose", C17))=FALSE), 0, 1) -> 1 | M17: ="C" & ROW(C17) -> C17 | N17: =IF(OR(C17="General Service Intermediate Rate Class 1,000 To 4,999 kW (formerly General Service > 50 kW Customers)", C17="General Service Intermediate Rate Class 1,000 To 4,999 kW (formerly Large Use Customers)"), "x", "") ->  | W17: Choose Rate Class
C18: General Service Less Than 50 kW | E18: kWh | G18: 0.0059 | I18: 0.0052 | L18: 1 | M18: C18 | N18: =IF(OR(C18="General Service Intermediate Rate Class 1,000 To 4,999 kW (formerly General Service > 50 kW Customers)", C18="General Service Intermediate Rate Class 1,000 To 4,999 kW (formerly Large Use Customers)"), "x", "") ->  | W18: Residential
C19: General Service 50 to 999 kW | E19: kW | G19: 2.6482 | I19: 1.8703 | L19: 1 | M19: C19 | W19: Residential Regular
C20: General Service 1,000 to 4,999 kW | E20: kW | G20: 2.8748 | I20: 2.0036 | L20: 1 | M20: C20 | W20: Residential Urban
C21: Large Use | E21: kW | G21: 3.1869 | I21: 2.2727 | L21: 1 | M21: C21 | W21: Residential Urban Year-Round
C22: Unmetered Scattered Load | E22: kWh | G22: 0.0059 | I22: 0.0052 | L22: 1 | M22: C22 | W22: Residential Suburban
C23: Sentinel Lighting | E23: kWh | G23: 0.0059 | I23: 0.0052 | L23: 1 | M23: C23 | W23: Residential Suburban Seasonal
C24: Street Lighting | E24: kW | G24: 2.0441 | I24: 2.378 | L24: 1 | M24: C24 | W24: Residential Suburban Year Round
C25: Embedded Distributor | E25: kW | G25: 3.846 | I25: 2.6423 | L25: 1 | M25: C25 | W25: Residential - Time of Use
C26: Choose Rate Class | L26: 0 | M26: C26 | W26: Residential - Hensall
C27: Choose Rate Class | L27: 0 | M27: C27 | W27: Residential – High Density [R1]
C28: Choose Rate Class | L28: 0 | M28: C28 | W28: Residential – Normal Density [R2]
C29: Choose Rate Class | L29: 0 | M29: C29 | W29: Seasonal Residential – High Density [R3]
C30: Choose Rate Class | L30: 0 | M30: C30 | W30: Seasonal Residential – Normal Density [R4]
C31: Choose Rate Class | L31: 0 | M31: C31 | W31: Residential – Urban [UR]
C32: Choose Rate Class | L32: 0 | M32: C32 | W32: General Service Less Than 50 kW
C33: Choose Rate Class | L33: 0 | M33: C33 | W33: General Service Less Than 50 kW – Single Phase energy-billed [G1]
C34: Choose Rate Class | L34: 0 | M34: C34 | W34: General Service Less Than 50 kW – Three Phase energy-billed [G3]
C35: Choose Rate Class | L35: 0 | M35: C35 | W35: General Service Less Than 50 kW – Transmission Class energy-billed [T]
C36: Choose Rate Class | L36: 0 | M36: C36 | W36: General Service Less Than 50 kW – Urban energy-billed [UG]
C37: Choose Rate Class | L37: 0 | M37: C37 | W37: Westport Sewage Treatment Plant
C38: Choose Rate Class | L38: 0 | M38: C38 | W38: Small Commercial and USL - per meter
N39: =COUNTIF(N17:N38, "x") -> 0 | W39: Small Commercial and USL - per connection
W40: Farms – Single Phase energy-billed [F1]
W41: General Service 50 to 499 kW
W42: General Service 50 to 699 kW
W43: General Service 50 to 999 kW
W44: General Service 50 to 999 kW - Interval Metered
W45: General Service 50 to 1,000 kW
W46: General Service 50 to 1,000 kW - Interval Meters
W47: General Service 50 to 1,000 kW - Non Interval Meters
W48: General Service 50 to 1,499 kW
W49: General Service 50 to 1,499 kW - Interval Metered
W50: General Service 50 to 2,499 kW
W51: General Service 50 to 2,999 kW
W52: General Service 50 to 2,999 kW - Time of Use
W53: General Service 50 to 4,999 kW
W54: General Service 50 to 4,999 kW – Interval Metered
W55: General Service 50 to 4,999 kW - Time of Use
W56: General Service 50 to 4,999 kW (CoGeneration)
W57: General Service 50 to 4,999 kW (formerly Time of Use)
W58: General Service 500 to 4,999 kW
W59: General Service 700 to 4,999 kW
W60: General Service 1,000 to 2,999 kW
W61: General Service 1,000 to 4,999 kW
W62: General Service 1,000 to 4,999 kW - Interval Meters
W63: General Service 1,000 To 4,999 kW (co-generation)
W64: General Service Greater Than 1,000 kW
W65: General Service Intermediate Rate Class 1,000 To 4,999 kW (formerly Large Use Customers)
W66: General Service Intermediate Rate Class 1,000 To 4,999 kW (formerly General Service > 50 kW Customers)
W67: General Service 1,500 to 4,999 kW
W68: General Service Equal To Or Greater Than 1,500 kW
W69: General Service Equal To Or Greater Than 1,500 kW - Interval Metered
W70: General Service Intermediate 1,000 To 4,999 kW
W71: General Service 2,500 to 4,999 kW
W72: General Service 3,000 to 4,999 kW
W73: General Service 3,000 to 4,999 kW - Interval Metered
W74: General Service 3,000 to 4,999 kW - Intermediate Use
W75: General Service 3,000 to 4,999 kW - Time of Use
W76: Intermediate With Self Generation
W77: General Service - Commercial
W78: General Service - Institutional
W79: Farms – Three Phase energy-billed [F3]
W80: Large Use
W81: Large Use - Regular
W82: Large Use > 5000 kW
W83: Large Use - 3TS
W84: Large Use - Ford Annex
W85: Unmetered Scattered Load
W86: Sentinel Lighting
W87: Street Lighting
W88: Embedded Distributor
W89: Low Voltage Wheeling Charge Rate
W90: Stand-By
W91: Standby Power
W92: Standby Power – INTERIM APPROVAL
W93: Standby Power - APPROVED ON AN INTERIM BASIS
W94: Standby - General Service 50 - 1,000 kW
W95: Standby Power General Service 50 to 1,499 kW
W96: Standby - General Service 1,000 - 5,000 kW
W97: Standby Power General Service 1,500 to 4,999 kW
W98: Standby - Large Use
W99: Standby Power General Service Large Use
W100: Standby Distribution Service

Sheet 4. RRR Data
B15: Rate Class | C15: Rate Description | D15: Unit | E15: Rate | F15: Non-Loss Adjusted Metered kWh | G15: Non-Loss Adjusted Metered kW | H15: Applicable Loss Factor eg: (1.0325) | I15: Loss Adjusted Billed kWh
B17: Residential | C17: RTSR - Network | D17: kWh | E17: 0.0063 | F17: 135812999 | G17: 0 | H17: 1.0451 | I17: =F17*H17 -> 141938165.3
B18: Residential | C18: RTSR - Connection | D18: kWh | E18: 0.0056 | F18: 135812999 | G18: 0 | H18: 1.0451 | I18: =F18*H18 -> 141938165.3
B19: General Service Less Than 50 kW | C19: RTSR - Network | D19: kWh | E19: 0.0059 | F19: 47996002 | G19: 0 | H19: 1.0451 | I19: =F19*H19 -> 50160621.69
B20: General Service Less Than 50 kW | C20: RTSR - Connection | D20: kWh | E20: 0.0052 | F20: 47996002 | G20: 0 | H20: 1.0451 | I20: =F20*H20 -> 50160621.69
B21: General Service 50 to 999 kW | C21: RTSR - Network | D21: kW | E21: 2.6482 | F21: 111817487 | G21: 272810
B22: General Service 50 to 999 kW | C22: RTSR - Connection | D22: kW | E22: 1.8703 | F22: 111817487 | G22: 272810
B23: General Service 1,000 to 4,999 kW | C23: RTSR - Network | D23: kW | E23: 2.8748 | F23: 56559248 | G23: 197271
B24: General Service 1,000 to 4,999 kW | C24: RTSR - Connection | D24: kW | E24: 2.0036 | F24: 56559248 | G24: 197271
B25: Large Use | C25: RTSR - Network | D25: kW | E25: 3.1869 | F25: 107399719 | G25: 177134
B26: Large Use | C26: RTSR - Connection | D26: kW | E26: 2.2727 | F26: 107399719 | G26: 177134
B27: Unmetered Scattered Load | C27: RTSR - Network | D27: kWh | E27: 0.0059 | F27: 514359 | H27: 1.0451 | I27: =F27*H27 -> 537556.5909
B28: Unmetered Scattered Load | C28: RTSR - Connection | D28: kWh | E28: 0.0052 | F28: 514359 | H28: 1.0451 | I28: =F28*H28 -> 537556.5909
B29: Sentinel Lighting | C29: RTSR - Network | D29: kWh | E29: 0.0059 | F29: 220514 | G29: 574.0686383 | H29: 1.0451 | I29: =F29*H29 -> 230459.1814
B30: Sentinel Lighting | C30: RTSR - Connection | D30: kWh | E30: 0.0052 | F30: 220514 | G30: 574.0686383 | H30: 1.0451 | I30: =F30*H30 -> 230459.1814
B31: Street Lighting | C31: RTSR - Network | D31: kW | E31: 2.0441 | F31: 1928543 | G31: 5395
B32: Street Lighting | C32: RTSR - Connection | D32: kW | E32: 2.378 | F32: 1928543 | G32: 5395
B33: Embedded Distributor | C33: RTSR - Network | D33: kW | E33: 3.846 | F33: 16022325 | G33: 36389
B34: Embedded Distributor | C34: RTSR - Connection | D34: kW | E34: 2.6423 | F34: 16022325 | G34: 36389

Sheet 5. UTRs and Sub-Transmission
B18: Uniform Transmission Rates | C18: Unit | E18: 2016 | H18: 2017 | J18: 2018
B20: Rate Description | E20: Rate | H20: Rate | J20: Rate
B22: Network Service Rate | C22: kW | E22: 3.66 | H22: 3.66 | J22: 3.61
B24: Line Connection Service Rate | C24: kW | E24: 0.87 | H24: 0.87 | J24: 0.95
B26: Transformation Connection Service Rate | C26: kW | E26: 2.02 | H26: 2.02 | J26: 2.34
B29: Hydro One Sub-Transmission Rates | C29: Unit | E29: 2016 | H29: 2017 | J29: 2018
E30: Jan 2016 | F30: Feb - Dec 2016
B34: Rate Description | E34: Rate | H34: Rate | J34: Rate
B36: Network Service Rate | C36: kW | E36: 3.4121 | F36: 3.3396 | H36: 3.1942 | J36: 3.1942
B38: Line Connection Service Rate | C38: kW | E38: 0.7879 | F38: 0.7791 | H38: 0.771 | J38: 0.771
B40: Transformation Connection Service Rate | C40: kW | E40: 1.8018 | F40: 1.7713 | H40: 1.7493 | J40: 1.7493
B42: Both Line and Transformation Connection Service Rate | C42: kW | E42: =E40+E38 -> 2.5897 | F42: =SUM(F40,F38) -> 2.5504 | H42: =SUM(H40,H38) -> 2.5203 | J42: =SUM(J40,J38) -> 2.5203
B45: If needed, add extra host here. (I) | C45: Unit | E45: 2016 | H45: 2017 | J45: 2018
B49: Rate Description | E49: Rate | H49: Rate | J49: Rate
B51: Network Service Rate | C51: kW
B53: Line Connection Service Rate | C53: kW
B55: Transformation Connection Service Rate | C55: kW
B57: Both Line and Transformation Connection Service Rate | C57: kW | E57: =SUM(E53,E55) -> 0 | H57: =SUM(H53,H55) -> 0 | J57: =J55+J53 -> 0
B60: If needed, add extra host here. (II) | C60: Unit | E60: Effective January 1, 2016 | H60: Effective January 1, 2017 | J60: Effective January 1, 2018
B64: Rate Description | E64: Rate | H64: Rate | J64: Rate
B66: Network Service Rate | C66: kW
B68: Line Connection Service Rate | C68: kW
B70: Transformation Connection Service Rate | C70: kW
B72: Both Line and Transformation Connection Service Rate | C72: kW | E72: =SUM(E68,E70) -> 0 | H72: =SUM(H68,H70) -> 0 | J72: =J70+J68 -> 0
E74: Historical 2016 | H74: Current 2017 | J74: Forecast 2018
B75: Low Voltage Switchgear Credit (if applicable, enter as a negative value) | C75: $

Sheet 6. Historical Wholesale
B21: IESO | D21: Network | H21: Line Connection | L21: Transformation Connection | P21: Total Line
B22: Month | D22: Units Billed | E22: Rate | F22: Amount | H22: Units Billed | I22: Rate | J22: Amount | L22: Units Billed | M22: Rate | N22: Amount | P22: Amount
B24: January | D24: 8437 | E24: =IF(D24<>0,F24/D24,0) -> 3.659950219 | F24: 30879 | H24: 9926 | I24: =IF(H24<>0,J24/H24,0) -> 0.8700382833 | J24: 8636 | L24: 9926 | M24: =IF(L24<>0,N24/L24,0) -> 2.020048358 | N24: 20051 | P24: =J24+N24 -> 28687
B25: February | D25: 9269 | E25: =IF(D25<>0,F25/D25,0) -> 3.660049628 | F25: 33925 | H25: 9948 | I25: =IF(H25<>0,J25/H25,0) -> 0.8700241255 | J25: 8655 | L25: 9948 | M25: =IF(L25<>0,N25/L25,0) -> 2.020004021 | N25: 20095 | P25: 28750
B26: March | D26: 7672 | E26: 3.660062565 | F26: 28080 | H26: 9026 | I26: 0.8700421006 | J26: 7853 | L26: 9026 | M26: 2.02005318 | N26: 18233 | P26: 26086
B27: April | D27: 7544 | E27: 3.659994698 | F27: 27611 | H27: 8875 | I27: 0.869971831 | J27: 7721 | L27: 8875 | M27: 2.020056338 | N27: 17928 | P27: 25649
B28: May | D28: 7449 | E28: 3.659954356 | F28: 27263 | H28: 9298 | I28: 0.869972037 | J28: 8089 | L28: 9298 | M28: 2.020004302 | N28: 18782 | P28: 26871
B29: June | D29: 11117 | E29: 3.65998021 | F29: 40688 | H29: 11117 | I29: 0.87001889 | J29: 9672 | L29: 11117 | M29: 2.019969416 | N29: 22456 | P29: 32128
B30: July | D30: 12804 | E30: 3.660028116 | F30: 46863 | H30: 15063 | I30: 0.8700126137 | J30: 13105 | L30: 15063 | M30: 2.019982739 | N30: 30427 | P30: 43532
B31: August | D31: 9461 | E31: 3.659972519 | F31: 34627 | H31: 9660 | I31: 0.8699792961 | J31: 8404 | L31: 9660 | M31: 2.019979296 | N31: 19513 | P31: 27917
B32: September | D32: 8342 | E32: 3.660033565 | F32: 30532 | H32: 9298 | I32: 0.869972037 | J32: 8089 | L32: 9298 | M32: 2.020004302 | N32: 18782 | P32: 26871
B33: October | D33: 5797 | E33: 3.65999655 | F33: 21217 | H33: 6820 | I33: 0.869941349 | J33: 5933 | L33: 6820 | M33: 2.019941349 | N33: 13776 | P33: 19709
B34: November | D34: 7442 | E34: 3.660037624 | F34: 27238 | H34: 8755 | I34: 0.8700171331 | J34: 7617 | L34: 8755 | M34: 2.019988578 | N34: 17685 | P34: 25302
B35: December | D35: 8016 | E35: 3.66005489 | F35: 29339 | H35: 9430 | I35: 0.8699893955 | J35: 8204 | L35: 9430 | M35: 2.020042418 | N35: 19049 | P35: 27253
B37: Total | D37: =SUM(D24:D35) -> 103350 | E37: =IF(D37<>0,F37/D37,0) -> 3.660009676 | F37: =SUM(F24:F35) -> 378262 | H37: =SUM(H24:H35) -> 117216 | I37: =IF(H37<>0,J37/H37,0) -> 0.8700006825 | J37: =SUM(J24:J35) -> 101978 | L37: =SUM(L24:L35) -> 117216 | M37: =IF(L37<>0,N37/L37,0) -> 2.020005801 | N37: =SUM(N24:N35) -> 236777 | P37: =SUM(P24:P35) -> 338755
B39: Hydro One | D39: Network | H39: Line Connection | L39: Transformation Connection | P39: Total Line
B41: Month | D41: Units Billed | E41: Rate | F41: Amount | H41: Units Billed | I41: Rate | J41: Amount | L41: Units Billed | M41: Rate | N41: Amount | P41: Amount
B43: January | D43: 68762.21 | E43: =IF(D43<>0,F43/D43,0) -> 3.412099757 | F43: 234623.52 | H43: 68865 | I43: =IF(H43<>0,J43/H43,0) -> 0.7879038699 | J43: 54259 | L43: 63569 | M43: =IF(L43<>0,N43/L43,0) -> 1.801807799 | N43: 114539.12 | P43: =J43+N43 -> 168798.12
B44: February | D44: 65777.61 | E44: =IF(D44<>0,F44/D44,0) -> 3.339600055 | F44: 219670.91 | H44: 66486 | I44: =IF(H44<>0,J44/H44,0) -> 0.7791113919 | J44: 51800 | L44: 61713 | M44: =IF(L44<>0,N44/L44,0) -> 1.771301833 | N44: 109312.35 | P44: 161112.35
B45: March | D45: 64274.58 | E45: 3.339600197 | F45: 214651.4 | H45: 64475 | I45: 0.7791081815 | J45: 50233 | L45: 59609 | M45: 1.771289738 | N45: 105584.81 | P45: 155817.81
B46: April | D46: 61818.3 | E46: 3.339600086 | F46: 206448.4 | H46: 62152 | I46: 0.7791060626 | J46: 48423 | L46: 57738 | M46: 1.771290831 | N46: 102270.79 | P46: 150693.79
B47: May | D47: 65438.9 | E47: 3.339599993 | F47: 218539.75 | H47: 67770 | I47: 0.7790910432 | J47: 52799 | L47: 63359 | M47: 1.771310785 | N47: 112228.48 | P47: 165027.48
B48: June | D48: 75043.81 | E48: 3.339599895 | F48: 250616.3 | H48: =75775+4747 -> 80522 | I48: 0.779108194 | J48: =59037+3698.35 -> 62735.35 | L48: =70645+4747 -> 75392 | M48: 1.771299342 | N48: =125133.53+8408.27 -> 133541.8 | P48: 196277.15
B49: July | D49: 76883.13 | E49: 3.339600118 | F49: 256758.91 | H49: 78090 | I49: 0.7791010373 | J49: 60840 | L49: 72747 | M49: 1.771295586 | N49: 128856.44 | P49: 189696.44
B50: August | D50: 79677.62 | E50: 3.33963778 | F50: 266094.39 | H50: 79916 | I50: 0.7790930477 | J50: 62262 | L50: 74580 | M50: 1.771289354 | N50: 132102.76 | P50: 194364.76
B51: September | D51: 79985.06 | E51: 3.33959992 | F51: 267118.1 | H51: 81319 | I51: 0.7791045143 | J51: 63356 | L51: 75624 | M51: 1.771289273 | N51: 133951.98 | P51: 197307.98
B52: October | D52: 61859.5 | E52: 3.339604749 | F52: 206586.28 | H52: =62233 -> 62233 | I52: 0.7791043337 | J52: =48486 -> 48486 | L52: =57356 -> 57356 | M52: 1.771307274 | N52: =101595.1 -> 101595.1 | P52: 150081.1
B53: November | D53: 65733.59 | E53: 3.339599739 | F53: 219523.88 | H53: 65957 | I53: 0.7790985036 | J53: 51387 | L53: 60762 | M53: 1.77130213 | N53: 107627.86 | P53: 159014.86
B54: December | D54: 84650.78 | E54: 3.339599824 | F54: =236579.06+46120.67 -> 282699.73 | H54: =71043+13932.51 -> 84975.51 | I54: 0.779092941 | J54: =55349+10854.82 -> 66203.82 | L54: =65696+13932.51 -> 79628.51 | M54: 1.771305905 | N54: =116367.8+24678.65 -> 141046.45 | P54: 207250.27
B56: Total | D56: =SUM(D43:D54) -> 849905.09 | E56: =IF(D56<>0,F56/D56,0) -> 3.345469516 | F56: =SUM(F43:F54) -> 2843331.57 | H56: =SUM(H43:H54) -> 862760.51 | I56: =IF(H56<>0,J56/H56,0) -> 0.7798040849 | J56: =SUM(J43:J54) -> 672784.17 | L56: =SUM(L43:L54) -> 802077.51 | M56: =IF(L56<>0,N56/L56,0) -> 1.773716283 | N56: =SUM(N43:N54) -> 1422657.94 | P56: =SUM(P43:P54) -> 2095442.11
B58: Add Extra Host Here (I) | D58: Network | H58: Line Connection | L58: Transformation Connection | P58: Total Line
B59: (if needed)
B60: Month | D60: Units Billed | E60: Rate | F60: Amount | H60: Units Billed | I60: Rate | J60: Amount | L60: Units Billed | M60: Rate | N60: Amount | P60: Amount
B62: January | E62: =IF(D62<>0,F62/D62,0) -> 0 | I62: =IF(H62<>0,J62/H62,0) -> 0 | M62: =IF(L62<>0,N62/L62,0) -> 0 | P62: =J62+N62 -> 0
B63: February | E63: 0 | I63: 0 | M63: 0 | P63: 0
B64: March | E64: 0 | I64: 0 | M64: 0 | P64: 0
B65: April | E65: 0 | I65: 0 | M65: 0 | P65: 0
B66: May | E66: 0 | I66: 0 | M66: 0 | P66: 0
B67: June | E67: 0 | I67: 0 | M67: 0 | P67: 0
B68: July | E68: 0 | I68: 0 | M68: 0 | P68: 0
B69: August | E69: 0 | I69: 0 | M69: 0 | P69: 0
B70: September | E70: 0 | I70: 0 | M70: 0 | P70: 0
B71: October | E71: 0 | I71: 0 | M71: 0 | P71: 0
B72: November | E72: 0 | I72: 0 | M72: 0 | P72: 0
B73: December | E73: 0 | I73: 0 | M73: 0 | P73: 0
B75: Total | D75: =SUM(D62:D73) -> 0 | E75: =IF(D75<>0,F75/D75,0) -> 0 | F75: =SUM(F62:F73) -> 0 | H75: =SUM(H62:H73) -> 0 | I75: =IF(H75<>0,J75/H75,0) -> 0 | J75: =SUM(J62:J73) -> 0 | L75: =SUM(L62:L73) -> 0 | M75: =IF(L75<>0,N75/L75,0) -> 0 | N75: =SUM(N62:N73) -> 0 | P75: =SUM(P62:P73) -> 0
B77: Add Extra Host Here (II) | D77: Network | H77: Line Connection | L77: Transformation Connection | P77: Total Line
B78: (if needed)
B79: Month | D79: Units Billed | E79: Rate | F79: Amount | H79: Units Billed | I79: Rate | J79: Amount | L79: Units Billed | M79: Rate | N79: Amount | P79: Amount
B81: January | E81: =IF(D81<>0,F81/D81,0) -> 0 | I81: =IF(H81<>0,J81/H81,0) -> 0 | M81: =IF(L81<>0,N81/L81,0) -> 0 | P81: =J81+N81 -> 0
B82: February | E82: 0 | I82: 0 | M82: 0 | P82: 0
B83: March | E83: 0 | I83: 0 | M83: 0 | P83: 0
B84: April | E84: 0 | I84: 0 | M84: 0 | P84: 0
B85: May | E85: 0 | I85: 0 | M85: 0 | P85: 0
B86: June | E86: 0 | I86: 0 | M86: 0 | P86: 0
B87: July | E87: 0 | I87: 0 | M87: 0 | P87: 0
B88: August | E88: 0 | I88: 0 | M88: 0 | P88: 0
B89: September | E89: 0 | I89: 0 | M89: 0 | P89: 0
B90: October | E90: 0 | I90: 0 | M90: 0 | P90: 0
B91: November | E91: 0 | I91: 0 | M91: 0 | P91: 0
B92: December | E92: 0 | I92: 0 | M92: 0 | P92: 0
B94: Total | D94: =SUM(D81:D92) -> 0 | E94: =IF(D94<>0,F94/D94,0) -> 0 | F94: =SUM(F81:F92) -> 0 | H94: =SUM(H81:H92) -> 0 | I94: =IF(H94<>0,J94/H94,0) -> 0 | J94: =SUM(J81:J92) -> 0 | L94: =SUM(L81:L92) -> 0 | M94: =IF(L94<>0,N94/L94,0) -> 0 | N94: =SUM(N81:N92) -> 0 | P94: =SUM(P81:P92) -> 0
B96: Total | D96: Network | H96: Line Connection | L96: Transformation Connection | P96: Total Line
B98: Month | D98: Units Billed | E98: Rate | F98: Amount | H98: Units Billed | I98: Rate | J98: Amount | L98: Units Billed | M98: Rate | N98: Amount | P98: Amount
B100: January | D100: =D24+D43+D62+D81 -> 77199.21 | E100: =IF(D100<>0,F100/D100,0) -> 3.439187007 | F100: =F24+F43+F62+F81 -> 265502.52 | H100: =H24+H43+H62+H81 -> 78791 | I100: =IF(H100<>0,J100/H100,0) -> 0.7982510693 | J100: =J24+J43+J62+J81 -> 62895 | L100: =L24+L43+L62+L81 -> 73495 | M100: =IF(L100<>0,N100/L100,0) -> 1.831282672 | N100: =N24+N43+N62+N81 -> 134590.12 | P100: =J100+N100 -> 197485.12
B101: February | D101: =D25+D44+D63+D82 -> 75046.61 | E101: 3.379178753 | F101: =F25+F44+F63+F82 -> 253595.91 | H101: =H25+H44+H63+H82 -> 76434 | I101: 0.7909438208 | J101: =J25+J44+J63+J82 -> 60455 | L101: =L25+L44+L63+L82 -> 71661 | M101: 1.80582674 | N101: =N25+N44+N63+N82 -> 129407.35 | P101: 189862.35
B102: March | D102: 71946.58 | E102: 3.373772596 | F102: 242731.4 | H102: 73501 | I102: 0.7902749622 | J102: 58086 | L102: 68635 | M102: 1.804003934 | N102: 123817.81 | P102: 181903.81
B103: April | D103: 69362.3 | E103: 3.374446926 | F103: 234059.4 | H103: 71027 | I103: 0.7904599659 | J103: 56144 | L103: 66613 | M103: 1.80443442 | N103: 120198.79 | P103: 176342.79
B104: May | D104: 72887.9 | E104: 3.372339579 | F104: 245802.75 | H104: 77068 | I104: 0.7900555354 | J104: 60888 | L104: 72657 | M104: 1.803136381 | N104: 131010.48 | P104: 191898.48
B105: June | D105: 86160.81 | E105: 3.380937343 | F105: 291304.3 | H105: 91639 | I105: 0.7901368413 | J105: 72407.35 | L105: 86509 | M105: 1.803255153 | N105: 155997.8 | P105: 228405.15
B106: July | D106: 89687.13 | E106: 3.385345367 | F106: 303621.91 | H106: 93153 | I106: 0.7938015952 | J106: 73945 | L106: 87810 | M106: 1.813955586 | N106: 159283.44 | P106: 233228.44
B107: August | D107: 89138.62 | E107: 3.373637487 | F107: 300721.39 | H107: 89576 | I107: 0.7888943467 | J107: 70666 | L107: 84240 | M107: 1.799807217 | N107: 151615.76 | P107: 222281.76
B108: September | D108: 88327.06 | E108: 3.369863097 | F108: 297650.1 | H108: 90617 | I108: 0.7884282199 | J108: 71445 | L108: 84922 | M108: 1.79852076 | N108: 152733.98 | P108: 224178.98
B109: October | D109: 67656.5 | E109: 3.367056824 | F109: 227803.28 | H109: 69053 | I109: 0.7880758258 | J109: 54419 | L109: 64176 | M109: 1.797729681 | N109: 115371.1 | P109: 169790.1
B110: November | D110: 73175.59 | E110: 3.372188458 | F110: 246761.88 | H110: 74712 | I110: 0.7897526502 | J110: 59004 | L110: 69517 | M110: 1.802621805 | N110: 125312.86 | P110: 184316.86
B111: December | D111: 92666.78 | E111: 3.367320306 | F111: 312038.73 | H111: 94405.51 | I111: 0.7881724276 | J111: 74407.82 | L111: 89058.51 | M111: 1.797643482 | N111: 160095.45 | P111: 234503.27
B113: Total | D113: =SUM(D100:D111) -> 953255.09 | E113: =IF(D113<>0,F113/D113,0) -> 3.379571328 | F113: =SUM(F100:F111) -> 3221593.57 | H113: =SUM(H100:H111) -> 979976.51 | I113: =IF(H113<>0,J113/H113,0) -> 0.7905925929 | J113: =SUM(J100:J111) -> 774762.17 | L113: =SUM(L100:L111) -> 919293.51 | M113: =IF(L113<>0,N113/L113,0) -> 1.805119825 | N113: =SUM(N100:N111) -> 1659434.94 | P113: =SUM(P100:P111) -> 2434197.11
N115: Low Voltage Switchgear Credit (if applicable) | P115: ='5. UTRs and Sub-Transmission'!E75 -> 0
N117: Total including deduction for Low Voltage Switchgear Credit | P117: =P113+P115 -> 2434197.11

Sheet 7. Current Wholesale
B13: The purpose of this sheet is to calculate the expected billing when current 2017 Uniform Transmission Rates are applied against historical 2016 transmission units.
B20: IESO | D20: Network | H20: Line Connection | L20: Transformation Connection | P20: Total Line
B22: Month | D22: Units Billed | E22: Rate | F22: Amount | H22: Units Billed | I22: Rate | J22: Amount | L22: Units Billed | M22: Rate | N22: Amount | P22: Amount
B24: January | D24: ='6. Historical Wholesale'!D24 -> 8437 | E24: ='5. UTRs and Sub-Transmission'!H22 -> 3.66 | F24: =D24*E24 -> 30879.42 | H24: ='6. Historical Wholesale'!H24 -> 9926 | I24: ='5. UTRs and Sub-Transmission'!H24 -> 0.87 | J24: =H24*I24 -> 8635.62 | L24: ='6. Historical Wholesale'!L24 -> 9926 | M24: ='5. UTRs and Sub-Transmission'!H26 -> 2.02 | N24: =L24*M24 -> 20050.52 | P24: =J24+N24 -> 28686.14
B25: February | D25: ='6. Historical Wholesale'!D25 -> 9269 | E25: =E24 -> 3.66 | F25: =D25*E25 -> 33924.54 | H25: ='6. Historical Wholesale'!H25 -> 9948 | I25: =I24 -> 0.87 | J25: =H25*I25 -> 8654.76 | L25: ='6. Historical Wholesale'!L25 -> 9948 | M25: =M24 -> 2.02 | N25: =L25*M25 -> 20094.96 | P25: 28749.72
B26: March | D26: ='6. Historical Wholesale'!D26 -> 7672 | E26: =E25 -> 3.66 | F26: 28079.52 | H26: ='6. Historical Wholesale'!H26 -> 9026 | I26: =I25 -> 0.87 | J26: 7852.62 | L26: ='6. Historical Wholesale'!L26 -> 9026 | M26: =M25 -> 2.02 | N26: 18232.52 | P26: 26085.14
B27: April | D27: ='6. Historical Wholesale'!D27 -> 7544 | E27: 3.66 | F27: 27611.04 | H27: ='6. Historical Wholesale'!H27 -> 8875 | I27: 0.87 | J27: 7721.25 | L27: ='6. Historical Wholesale'!L27 -> 8875 | M27: 2.02 | N27: 17927.5 | P27: 25648.75
B28: May | D28: ='6. Historical Wholesale'!D28 -> 7449 | E28: 3.66 | F28: 27263.34 | H28: ='6. Historical Wholesale'!H28 -> 9298 | I28: 0.87 | J28: 8089.26 | L28: ='6. Historical Wholesale'!L28 -> 9298 | M28: 2.02 | N28: 18781.96 | P28: 26871.22
B29: June | D29: ='6. Historical Wholesale'!D29 -> 11117 | E29: 3.66 | F29: 40688.22 | H29: ='6. Historical Wholesale'!H29 -> 11117 | I29: 0.87 | J29: 9671.79 | L29: ='6. Historical Wholesale'!L29 -> 11117 | M29: 2.02 | N29: 22456.34 | P29: 32128.13
B30: July | D30: ='6. Historical Wholesale'!D30 -> 12804 | E30: 3.66 | F30: 46862.64 | H30: ='6. Historical Wholesale'!H30 -> 15063 | I30: 0.87 | J30: 13104.81 | L30: ='6. Historical Wholesale'!L30 -> 15063 | M30: 2.02 | N30: 30427.26 | P30: 43532.07
B31: August | D31: ='6. Historical Wholesale'!D31 -> 9461 | E31: 3.66 | F31: 34627.26 | H31: ='6. Historical Wholesale'!H31 -> 9660 | I31: 0.87 | J31: 8404.2 | L31: ='6. Historical Wholesale'!L31 -> 9660 | M31: 2.02 | N31: 19513.2 | P31: 27917.4
B32: September | D32: ='6. Historical Wholesale'!D32 -> 8342 | E32: 3.66 | F32: 30531.72 | H32: ='6. Historical Wholesale'!H32 -> 9298 | I32: 0.87 | J32: 8089.26 | L32: ='6. Historical Wholesale'!L32 -> 9298 | M32: 2.02 | N32: 18781.96 | P32: 26871.22
B33: October | D33: ='6. Historical Wholesale'!D33 -> 5797 | E33: 3.66 | F33: 21217.02 | H33: ='6. Historical Wholesale'!H33 -> 6820 | I33: 0.87 | J33: 5933.4 | L33: ='6. Historical Wholesale'!L33 -> 6820 | M33: 2.02 | N33: 13776.4 | P33: 19709.8
B34: November | D34: ='6. Historical Wholesale'!D34 -> 7442 | E34: 3.66 | F34: 27237.72 | H34: ='6. Historical Wholesale'!H34 -> 8755 | I34: 0.87 | J34: 7616.85 | L34: ='6. Historical Wholesale'!L34 -> 8755 | M34: 2.02 | N34: 17685.1 | P34: 25301.95
B35: December | D35: ='6. Historical Wholesale'!D35 -> 8016 | E35: 3.66 | F35: 29338.56 | H35: ='6. Historical Wholesale'!H35 -> 9430 | I35: 0.87 | J35: 8204.1 | L35: ='6. Historical Wholesale'!L35 -> 9430 | M35: 2.02 | N35: 19048.6 | P35: 27252.7
B37: Total | D37: =SUM(D24:D35) -> 103350 | E37: =IF(D37<>0,F37/D37,0) -> 3.66 | F37: =SUM(F24:F35) -> 378261 | H37: =SUM(H24:H35) -> 117216 | I37: =IF(H37<>0,J37/H37,0) -> 0.87 | J37: =SUM(J24:J35) -> 101977.92 | L37: =SUM(L24:L35) -> 117216 | M37: =IF(L37<>0,N37/L37,0) -> 2.02 | N37: =SUM(N24:N35) -> 236776.32 | P37: =SUM(P24:P35) -> 338754.24
B39: Hydro One | D39: Network | H39: Line Connection | L39: Transformation Connection | P39: Total Line
B41: Month | D41: Units Billed | E41: Rate | F41: Amount | H41: Units Billed | I41: Rate | J41: Amount | L41: Units Billed | M41: Rate | N41: Amount | P41: Amount
B43: January | D43: ='6. Historical Wholesale'!D43 -> 68762.21 | E43: ='5. UTRs and Sub-Transmission'!H36 -> 3.1942 | F43: =D43*E43 -> 219640.2512 | H43: ='6. Historical Wholesale'!H43 -> 68865 | I43: ='5. UTRs and Sub-Transmission'!H38 -> 0.771 | J43: =H43*I43 -> 53094.915 | L43: ='6. Historical Wholesale'!L43 -> 63569 | M43: ='5. UTRs and Sub-Transmission'!H40 -> 1.7493 | N43: =L43*M43 -> 111201.2517 | P43: =J43+N43 -> 164296.1667
B44: February | D44: ='6. Historical Wholesale'!D44 -> 65777.61 | E44: =E43 -> 3.1942 | F44: =D44*E44 -> 210106.8419 | H44: ='6. Historical Wholesale'!H44 -> 66486 | I44: =I43 -> 0.771 | J44: =H44*I44 -> 51260.706 | L44: ='6. Historical Wholesale'!L44 -> 61713 | M44: =M43 -> 1.7493 | N44: =L44*M44 -> 107954.5509 | P44: 159215.2569
B45: March | D45: ='6. Historical Wholesale'!D45 -> 64274.58 | E45: 3.1942 | F45: 205305.8634 | H45: ='6. Historical Wholesale'!H45 -> 64475 | I45: 0.771 | J45: 49710.225 | L45: ='6. Historical Wholesale'!L45 -> 59609 | M45: =M44 -> 1.7493 | N45: 104274.0237 | P45: 153984.2487
B46: April | D46: ='6. Historical Wholesale'!D46 -> 61818.3 | E46: 3.1942 | F46: 197460.0139 | H46: ='6. Historical Wholesale'!H46 -> 62152 | I46: 0.771 | J46: 47919.192 | L46: ='6. Historical Wholesale'!L46 -> 57738 | M46: =M45 -> 1.7493 | N46: 101001.0834 | P46: 148920.2754
B47: May | D47: ='6. Historical Wholesale'!D47 -> 65438.9 | E47: 3.1942 | F47: 209024.9344 | H47: ='6. Historical Wholesale'!H47 -> 67770 | I47: 0.771 | J47: 52250.67 | L47: ='6. Historical Wholesale'!L47 -> 63359 | M47: 1.7493 | N47: 110833.8987 | P47: 163084.5687
B48: June | D48: ='6. Historical Wholesale'!D48 -> 75043.81 | E48: 3.1942 | F48: 239704.9379 | H48: ='6. Historical Wholesale'!H48 -> 80522 | I48: 0.771 | J48: 62082.462 | L48: ='6. Historical Wholesale'!L48 -> 75392 | M48: 1.7493 | N48: 131883.2256 | P48: 193965.6876
B49: July | D49: ='6. Historical Wholesale'!D49 -> 76883.13 | E49: 3.1942 | F49: 245580.0938 | H49: ='6. Historical Wholesale'!H49 -> 78090 | I49: 0.771 | J49: 60207.39 | L49: ='6. Historical Wholesale'!L49 -> 72747 | M49: 1.7493 | N49: 127256.3271 | P49: 187463.7171
B50: August | D50: ='6. Historical Wholesale'!D50 -> 79677.62 | E50: 3.1942 | F50: 254506.2538 | H50: ='6. Historical Wholesale'!H50 -> 79916 | I50: 0.771 | J50: 61615.236 | L50: ='6. Historical Wholesale'!L50 -> 74580 | M50: 1.7493 | N50: 130462.794 | P50: 192078.03
B51: September | D51: ='6. Historical Wholesale'!D51 -> 79985.06 | E51: 3.1942 | F51: 255488.2787 | H51: ='6. Historical Wholesale'!H51 -> 81319 | I51: 0.771 | J51: 62696.949 | L51: ='6. Historical Wholesale'!L51 -> 75624 | M51: 1.7493 | N51: 132289.0632 | P51: 194986.0122
B52: October | D52: ='6. Historical Wholesale'!D52 -> 61859.5 | E52: 3.1942 | F52: 197591.6149 | H52: ='6. Historical Wholesale'!H52 -> 62233 | I52: 0.771 | J52: 47981.643 | L52: ='6. Historical Wholesale'!L52 -> 57356 | M52: 1.7493 | N52: 100332.8508 | P52: 148314.4938
B53: November | D53: ='6. Historical Wholesale'!D53 -> 65733.59 | E53: 3.1942 | F53: 209966.2332 | H53: ='6. Historical Wholesale'!H53 -> 65957 | I53: 0.771 | J53: 50852.847 | L53: ='6. Historical Wholesale'!L53 -> 60762 | M53: 1.7493 | N53: 106290.9666 | P53: 157143.8136
B54: December | D54: ='6. Historical Wholesale'!D54 -> 84650.78 | E54: 3.1942 | F54: 270391.5215 | H54: ='6. Historical Wholesale'!H54 -> 84975.51 | I54: 0.771 | J54: 65516.11821 | L54: ='6. Historical Wholesale'!L54 -> 79628.51 | M54: 1.7493 | N54: 139294.1525 | P54: 204810.2708
B56: Total | D56: =SUM(D43:D54) -> 849905.09 | E56: =IF(D56<>0,F56/D56,0) -> 3.1942 | F56: =SUM(F43:F54) -> 2714766.838 | H56: =SUM(H43:H54) -> 862760.51 | I56: =IF(H56<>0,J56/H56,0) -> 0.771 | J56: =SUM(J43:J54) -> 665188.3532 | L56: =SUM(L43:L54) -> 802077.51 | M56: =IF(L56<>0,N56/L56,0) -> 1.7493 | N56: =SUM(N43:N54) -> 1403074.188 | P56: =SUM(P43:P54) -> 2068262.541
B58: ='6. Historical Wholesale'!B58 -> Add Extra Host Here (I) | D58: Network | H58: Line Connection | L58: Transformation Connection | P58: Total Line
B60: Month | D60: Units Billed | E60: Rate | F60: Amount | H60: Units Billed | I60: Rate | J60: Amount | L60: Units Billed | M60: Rate | N60: Amount | P60: Amount
B62: January | D62: ='6. Historical Wholesale'!D62 -> 0 | E62: ='5. UTRs and Sub-Transmission'!H51 -> 0 | F62: =D62*E62 -> 0 | H62: ='6. Historical Wholesale'!H62 -> 0 | I62: ='5. UTRs and Sub-Transmission'!H53 -> 0 | J62: =H62*I62 -> 0 | L62: ='6. Historical Wholesale'!L62 -> 0 | M62: ='5. UTRs and Sub-Transmission'!H55 -> 0 | N62: =L62*M62 -> 0 | P62: =J62+N62 -> 0
B63: February | D63: ='6. Historical Wholesale'!D63 -> 0 | E63: =E62 -> 0 | F63: =D63*E63 -> 0 | H63: ='6. Historical Wholesale'!H63 -> 0 | I63: =I62 -> 0 | J63: =H63*I63 -> 0 | L63: ='6. Historical Wholesale'!L63 -> 0 | M63: =M62 -> 0 | N63: =L63*M63 -> 0 | P63: 0
B64: March | D64: ='6. Historical Wholesale'!D64 -> 0 | E64: =E63 -> 0 | F64: 0 | H64: ='6. Historical Wholesale'!H64 -> 0 | I64: =I63 -> 0 | J64: 0 | L64: ='6. Historical Wholesale'!L64 -> 0 | M64: =M63 -> 0 | N64: 0 | P64: 0
B65: April | D65: ='6. Historical Wholesale'!D65 -> 0 | E65: 0 | F65: 0 | H65: ='6. Historical Wholesale'!H65 -> 0 | I65: 0 | J65: 0 | L65: ='6. Historical Wholesale'!L65 -> 0 | M65: =M64 -> 0 | N65: 0 | P65: 0
B66: May | D66: ='6. Historical Wholesale'!D66 -> 0 | E66: 0 | F66: 0 | H66: ='6. Historical Wholesale'!H66 -> 0 | I66: 0 | J66: 0 | L66: ='6. Historical Wholesale'!L66 -> 0 | M66: 0 | N66: 0 | P66: 0
B67: June | D67: ='6. Historical Wholesale'!D67 -> 0 | E67: 0 | F67: 0 | H67: ='6. Historical Wholesale'!H67 -> 0 | I67: 0 | J67: 0 | L67: ='6. Historical Wholesale'!L67 -> 0 | M67: 0 | N67: 0 | P67: 0
B68: July | D68: ='6. Historical Wholesale'!D68 -> 0 | E68: 0 | F68: 0 | H68: ='6. Historical Wholesale'!H68 -> 0 | I68: 0 | J68: 0 | L68: ='6. Historical Wholesale'!L68 -> 0 | M68: 0 | N68: 0 | P68: 0
B69: August | D69: ='6. Historical Wholesale'!D69 -> 0 | E69: 0 | F69: 0 | H69: ='6. Historical Wholesale'!H69 -> 0 | I69: 0 | J69: 0 | L69: ='6. Historical Wholesale'!L69 -> 0 | M69: 0 | N69: 0 | P69: 0
B70: September | D70: ='6. Historical Wholesale'!D70 -> 0 | E70: 0 | F70: 0 | H70: ='6. Historical Wholesale'!H70 -> 0 | I70: 0 | J70: 0 | L70: ='6. Historical Wholesale'!L70 -> 0 | M70: 0 | N70: 0 | P70: 0
B71: October | D71: ='6. Historical Wholesale'!D71 -> 0 | E71: 0 | F71: 0 | H71: ='6. Historical Wholesale'!H71 -> 0 | I71: 0 | J71: 0 | L71: ='6. Historical Wholesale'!L71 -> 0 | M71: 0 | N71: 0 | P71: 0
B72: November | D72: ='6. Historical Wholesale'!D72 -> 0 | E72: 0 | F72: 0 | H72: ='6. Historical Wholesale'!H72 -> 0 | I72: 0 | J72: 0 | L72: ='6. Historical Wholesale'!L72 -> 0 | M72: 0 | N72: 0 | P72: 0
B73: December | D73: ='6. Historical Wholesale'!D73 -> 0 | E73: 0 | F73: 0 | H73: ='6. Historical Wholesale'!H73 -> 0 | I73: 0 | J73: 0 | L73: ='6. Historical Wholesale'!L73 -> 0 | M73: 0 | N73: 0 | P73: 0
B75: Total | D75: =SUM(D62:D73) -> 0 | E75: =IF(D75<>0,F75/D75,0) -> 0 | F75: =SUM(F62:F73) -> 0 | H75: =SUM(H62:H73) -> 0 | I75: =IF(H75<>0,J75/H75,0) -> 0 | J75: =SUM(J62:J73) -> 0 | L75: =SUM(L62:L73) -> 0 | M75: =IF(L75<>0,N75/L75,0) -> 0 | N75: =SUM(N62:N73) -> 0 | P75: =SUM(P62:P73) -> 0
B77: ='6. Historical Wholesale'!B77 -> Add Extra Host Here (II) | D77: Network | H77: Line Connection | L77: Transformation Connection | P77: Total Line
B79: Month | D79: Units Billed | E79: Rate | F79: Amount | H79: Units Billed | I79: Rate | J79: Amount | L79: Units Billed | M79: Rate | N79: Amount | P79: Amount
B81: January | D81: ='6. Historical Wholesale'!D81 -> 0 | E81: ='5. UTRs and Sub-Transmission'!H66 -> 0 | F81: =D81*E81 -> 0 | H81: ='6. Historical Wholesale'!H81 -> 0 | I81: ='5. UTRs and Sub-Transmission'!H68 -> 0 | J81: =H81*I81 -> 0 | L81: ='6. Historical Wholesale'!L81 -> 0 | M81: ='5. UTRs and Sub-Transmission'!H70 -> 0 | N81: =L81*M81 -> 0 | P81: =J81+N81 -> 0
B82: February | D82: ='6. Historical Wholesale'!D82 -> 0 | E82: =E81 -> 0 | F82: =D82*E82 -> 0 | H82: ='6. Historical Wholesale'!H82 -> 0 | I82: =I81 -> 0 | J82: =H82*I82 -> 0 | L82: ='6. Historical Wholesale'!L82 -> 0 | M82: =M81 -> 0 | N82: =L82*M82 -> 0 | P82: 0
B83: March | D83: ='6. Historical Wholesale'!D83 -> 0 | E83: =E82 -> 0 | F83: 0 | H83: ='6. Historical Wholesale'!H83 -> 0 | I83: =I82 -> 0 | J83: 0 | L83: ='6. Historical Wholesale'!L83 -> 0 | M83: =M82 -> 0 | N83: 0 | P83: 0
B84: April | D84: ='6. Historical Wholesale'!D84 -> 0 | E84: 0 | F84: 0 | H84: ='6. Historical Wholesale'!H84 -> 0 | I84: 0 | J84: 0 | L84: ='6. Historical Wholesale'!L84 -> 0 | M84: =M83 -> 0 | N84: 0 | P84: 0
B85: May | D85: ='6. Historical Wholesale'!D85 -> 0 | E85: 0 | F85: 0 | H85: ='6. Historical Wholesale'!H85 -> 0 | I85: 0 | J85: 0 | L85: ='6. Historical Wholesale'!L85 -> 0 | M85: 0 | N85: 0 | P85: 0
B86: June | D86: ='6. Historical Wholesale'!D86 -> 0 | E86: 0 | F86: 0 | H86: ='6. Historical Wholesale'!H86 -> 0 | I86: 0 | J86: 0 | L86: ='6. Historical Wholesale'!L86 -> 0 | M86: 0 | N86: 0 | P86: 0
B87: July | D87: ='6. Historical Wholesale'!D87 -> 0 | E87: 0 | F87: 0 | H87: ='6. Historical Wholesale'!H87 -> 0 | I87: 0 | J87: 0 | L87: ='6. Historical Wholesale'!L87 -> 0 | M87: 0 | N87: 0 | P87: 0
B88: August | D88: ='6. Historical Wholesale'!D88 -> 0 | E88: 0 | F88: 0 | H88: ='6. Historical Wholesale'!H88 -> 0 | I88: 0 | J88: 0 | L88: ='6. Historical Wholesale'!L88 -> 0 | M88: 0 | N88: 0 | P88: 0
B89: September | D89: ='6. Historical Wholesale'!D89 -> 0 | E89: 0 | F89: 0 | H89: ='6. Historical Wholesale'!H89 -> 0 | I89: 0 | J89: 0 | L89: ='6. Historical Wholesale'!L89 -> 0 | M89: 0 | N89: 0 | P89: 0
B90: October | D90: ='6. Historical Wholesale'!D90 -> 0 | E90: 0 | F90: 0 | H90: ='6. Historical Wholesale'!H90 -> 0 | I90: 0 | J90: 0 | L90: ='6. Historical Wholesale'!L90 -> 0 | M90: 0 | N90: 0 | P90: 0
B91: November | D91: ='6. Historical Wholesale'!D91 -> 0 | E91: 0 | F91: 0 | H91: ='6. Historical Wholesale'!H91 -> 0 | I91: 0 | J91: 0 | L91: ='6. Historical Wholesale'!L91 -> 0 | M91: 0 | N91: 0 | P91: 0
B92: December | D92: ='6. Historical Wholesale'!D92 -> 0 | E92: 0 | F92: 0 | H92: ='6. Historical Wholesale'!H92 -> 0 | I92: 0 | J92: 0 | L92: ='6. Historical Wholesale'!L92 -> 0 | M92: 0 | N92: 0 | P92: 0
B94: Total | D94: =SUM(D81:D92) -> 0 | E94: =IF(D94<>0,F94/D94,0) -> 0 | F94: =SUM(F81:F92) -> 0 | H94: =SUM(H81:H92) -> 0 | I94: =IF(H94<>0,J94/H94,0) -> 0 | J94: =SUM(J81:J92) -> 0 | L94: =SUM(L81:L92) -> 0 | M94: =IF(L94<>0,N94/L94,0) -> 0 | N94: =SUM(N81:N92) -> 0 | P94: =SUM(P81:P92) -> 0
B96: Total | D96: Network | H96: Line Connection | L96: Transformation Connection | P96: Total Line
B98: Month | D98: Units Billed | E98: Rate | F98: Amount | H98: Units Billed | I98: Rate | J98: Amount | L98: Units Billed | M98: Rate | N98: Amount | P98: Amount
B100: January | D100: =D24+D43+D62+D81 -> 77199.21 | E100: =IF(D100<>0,F100/D100,0) -> 3.245106669 | F100: =F24+F43+F62+F81 -> 250519.6712 | H100: =H24+H43+H62+H81 -> 78791 | I100: =IF(H100<>0,J100/H100,0) -> 0.7834719067 | J100: =J24+J43+J62+J81 -> 61730.535 | L100: =L24+L43+L62+L81 -> 73495 | M100: =IF(L100<>0,N100/L100,0) -> 1.785859878 | N100: =N24+N43+N62+N81 -> 131251.7717 | P100: =J100+N100 -> 192982.3067
B101: February | D101: =D25+D44+D63+D82 -> 75046.61 | E101: 3.251730916 | F101: =F25+F44+F63+F82 -> 244031.3819 | H101: =H25+H44+H63+H82 -> 76434 | I101: 0.7838849988 | J101: =J25+J44+J63+J82 -> 59915.466 | L101: =L25+L44+L63+L82 -> 71661 | M101: 1.786878649 | N101: =N25+N44+N63+N82 -> 128049.5109 | P101: 187964.9769
B102: March | D102: 71946.58 | E102: 3.24387043 | F102: 233385.3834 | H102: 73501 | I102: 0.783157304 | J102: 57562.845 | L102: 68635 | M102: 1.784899012 | N102: 122506.5437 | P102: 180069.3887
B103: April | D103: 69362.3 | E103: 3.244861457 | F103: 225071.0539 | H103: 71027 | I103: 0.7833702958 | J103: 55640.442 | L103: 66613 | M103: 1.785365971 | N103: 118928.5834 | P103: 174569.0254
B104: May | D104: 72887.9 | E104: 3.241803844 | F104: 236288.2744 | H104: 77068 | I104: 0.7829440235 | J104: 60339.93 | L104: 72657 | M104: 1.783941791 | N104: 129615.8587 | P104: 189955.7887
B105: June | D105: 86160.81 | E105: 3.254300394 | F105: 280393.1579 | H105: 91639 | I105: 0.7830099848 | J105: 71754.252 | L105: 86509 | M105: 1.784086807 | N105: 154339.5656 | P105: 226093.8176
B106: July | D106: 89687.13 | E106: 3.260698986 | F106: 292442.7338 | H106: 93153 | I106: 0.7870084699 | J106: 73312.2 | L106: 87810 | M106: 1.795736102 | N106: 157683.5871 | P106: 230995.7871
B107: August | D107: 89138.62 | E107: 3.243639107 | F107: 289133.5138 | H107: 89576 | I107: 0.7816762972 | J107: 70019.436 | L107: 84240 | M107: 1.780341809 | N107: 149975.994 | P107: 219995.43
B108: September | D108: 88327.06 | E108: 3.238192222 | F108: 286019.9987 | H108: 90617 | I108: 0.7811581602 | J108: 70786.209 | L108: 84922 | M108: 1.778938593 | N108: 151071.0232 | P108: 221857.2322
B109: October | D109: 67656.5 | E109: 3.23411106 | F109: 218808.6349 | H109: 69053 | I109: 0.780777707 | J109: 53915.043 | L109: 64176 | M109: 1.778067359 | N109: 114109.2508 | P109: 168024.2938
B110: November | D110: 73175.59 | E110: 3.241572131 | F110: 237203.9532 | H110: 74712 | I110: 0.7826011484 | J110: 58469.697 | L110: 69517 | M110: 1.783392071 | N110: 123976.0666 | P110: 182445.7636
B111: December | D111: 92666.78 | E111: 3.234493326 | F111: 299730.0815 | H111: 94405.51 | I111: 0.7808889355 | J111: 73720.21821 | L111: 89058.51 | M111: 1.77796319 | N111: 158342.7525 | P111: 232062.9708
B113: Total | D113: =SUM(D100:D111) -> 953255.09 | E113: =IF(D113<>0,F113/D113,0) -> 3.244701099 | F113: =SUM(F100:F111) -> 3093027.838 | H113: =SUM(H100:H111) -> 979976.51 | I113: =IF(H113<>0,J113/H113,0) -> 0.782841492 | J113: =SUM(J100:J111) -> 767166.2732 | L113: =SUM(L100:L111) -> 919293.51 | M113: =IF(L113<>0,N113/L113,0) -> 1.78381604 | N113: =SUM(N100:N111) -> 1639850.508 | P113: =SUM(P100:P111) -> 2407016.781
N115: Low Voltage Switchgear Credit (if applicable) | P115: ='5. UTRs and Sub-Transmission'!H75 -> 0
N117: Total including deduction for Low Voltage Switchgear Credit | P117: =P113+P115 -> 2407016.781

Sheet 8. Forecast Wholesale
B13: The purpose of this sheet is to calculate the expected billing when forecasted 2018 Uniform Transmission Rates are applied against historical 2016 transmission units.
B20: IESO | D20: Network | H20: Line Connection | L20: Transformation Connection | P20: Total Line
B22: Month | D22: Units Billed | E22: Rate | F22: Amount | H22: Units Billed | I22: Rate | J22: Amount | L22: Units Billed | M22: Rate | N22: Amount | P22: Amount
B24: January | D24: ='6. Historical Wholesale'!D24 -> 8437 | E24: ='5. UTRs and Sub-Transmission'!J22 -> 3.61 | F24: =D24*E24 -> 30457.57 | H24: ='6. Historical Wholesale'!H24 -> 9926 | I24: ='5. UTRs and Sub-Transmission'!J24 -> 0.95 | J24: =H24*I24 -> 9429.7 | L24: ='6. Historical Wholesale'!L24 -> 9926 | M24: ='5. UTRs and Sub-Transmission'!J26 -> 2.34 | N24: =L24*M24 -> 23226.84 | P24: =J24+N24 -> 32656.54
B25: February | D25: ='6. Historical Wholesale'!D25 -> 9269 | E25: =E24 -> 3.61 | F25: 33461.09 | H25: ='6. Historical Wholesale'!H25 -> 9948 | I25: =I24 -> 0.95 | J25: 9450.6 | L25: ='6. Historical Wholesale'!L25 -> 9948 | M25: =M24 -> 2.34 | N25: 23278.32 | P25: 32728.92
B26: March | D26: ='6. Historical Wholesale'!D26 -> 7672 | E26: 3.61 | F26: 27695.92 | H26: ='6. Historical Wholesale'!H26 -> 9026 | I26: 0.95 | J26: 8574.7 | L26: ='6. Historical Wholesale'!L26 -> 9026 | M26: 2.34 | N26: 21120.84 | P26: 29695.54
B27: April | D27: ='6. Historical Wholesale'!D27 -> 7544 | E27: 3.61 | F27: 27233.84 | H27: ='6. Historical Wholesale'!H27 -> 8875 | I27: 0.95 | J27: 8431.25 | L27: ='6. Historical Wholesale'!L27 -> 8875 | M27: 2.34 | N27: 20767.5 | P27: 29198.75
B28: May | D28: ='6. Historical Wholesale'!D28 -> 7449 | E28: 3.61 | F28: 26890.89 | H28: ='6. Historical Wholesale'!H28 -> 9298 | I28: 0.95 | J28: 8833.1 | L28: ='6. Historical Wholesale'!L28 -> 9298 | M28: 2.34 | N28: 21757.32 | P28: 30590.42
B29: June | D29: ='6. Historical Wholesale'!D29 -> 11117 | E29: 3.61 | F29: 40132.37 | H29: ='6. Historical Wholesale'!H29 -> 11117 | I29: 0.95 | J29: 10561.15 | L29: ='6. Historical Wholesale'!L29 -> 11117 | M29: 2.34 | N29: 26013.78 | P29: 36574.93
B30: July | D30: ='6. Historical Wholesale'!D30 -> 12804 | E30: 3.61 | F30: 46222.44 | H30: ='6. Historical Wholesale'!H30 -> 15063 | I30: 0.95 | J30: 14309.85 | L30: ='6. Historical Wholesale'!L30 -> 15063 | M30: 2.34 | N30: 35247.42 | P30: 49557.27
B31: August | D31: ='6. Historical Wholesale'!D31 -> 9461 | E31: 3.61 | F31: 34154.21 | H31: ='6. Historical Wholesale'!H31 -> 9660 | I31: 0.95 | J31: 9177 | L31: ='6. Historical Wholesale'!L31 -> 9660 | M31: 2.34 | N31: 22604.4 | P31: 31781.4
B32: September | D32: ='6. Historical Wholesale'!D32 -> 8342 | E32: 3.61 | F32: 30114.62 | H32: ='6. Historical Wholesale'!H32 -> 9298 | I32: 0.95 | J32: 8833.1 | L32: ='6. Historical Wholesale'!L32 -> 9298 | M32: 2.34 | N32: 21757.32 | P32: 30590.42
B33: October | D33: ='6. Historical Wholesale'!D33 -> 5797 | E33: 3.61 | F33: 20927.17 | H33: ='6. Historical Wholesale'!H33 -> 6820 | I33: 0.95 | J33: 6479 | L33: ='6. Historical Wholesale'!L33 -> 6820 | M33: 2.34 | N33: 15958.8 | P33: 22437.8
B34: November | D34: ='6. Historical Wholesale'!D34 -> 7442 | E34: 3.61 | F34: 26865.62 | H34: ='6. Historical Wholesale'!H34 -> 8755 | I34: 0.95 | J34: 8317.25 | L34: ='6. Historical Wholesale'!L34 -> 8755 | M34: 2.34 | N34: 20486.7 | P34: 28803.95
B35: December | D35: ='6. Historical Wholesale'!D35 -> 8016 | E35: 3.61 | F35: 28937.76 | H35: ='6. Historical Wholesale'!H35 -> 9430 | I35: 0.95 | J35: 8958.5 | L35: ='6. Historical Wholesale'!L35 -> 9430 | M35: 2.34 | N35: 22066.2 | P35: 31024.7
B37: Total | D37: =SUM(D24:D35) -> 103350 | E37: =IF(D37<>0,F37/D37,0) -> 3.61 | F37: =SUM(F24:F35) -> 373093.5 | H37: =SUM(H24:H35) -> 117216 | I37: =IF(H37<>0,J37/H37,0) -> 0.95 | J37: =SUM(J24:J35) -> 111355.2 | L37: =SUM(L24:L35) -> 117216 | M37: =IF(L37<>0,N37/L37,0) -> 2.34 | N37: =SUM(N24:N35) -> 274285.44 | P37: =SUM(P24:P35) -> 385640.64
B39: Hydro One | D39: Network | H39: Line Connection | L39: Transformation Connection | P39: Total Line
B41: Month | D41: Units Billed | E41: Rate | F41: Amount | H41: Units Billed | I41: Rate | J41: Amount | L41: Units Billed | M41: Rate | N41: Amount | P41: Amount
B43: January | D43: ='6. Historical Wholesale'!D43 -> 68762.21 | E43: ='5. UTRs and Sub-Transmission'!J36 -> 3.1942 | F43: =D43*E43 -> 219640.2512 | H43: ='6. Historical Wholesale'!H43 -> 68865 | I43: ='5. UTRs and Sub-Transmission'!J38 -> 0.771 | J43: =H43*I43 -> 53094.915 | L43: ='6. Historical Wholesale'!L43 -> 63569 | M43: ='5. UTRs and Sub-Transmission'!J40 -> 1.7493 | N43: =L43*M43 -> 111201.2517 | P43: =J43+N43 -> 164296.1667
B44: February | D44: ='6. Historical Wholesale'!D44 -> 65777.61 | E44: =E43 -> 3.1942 | F44: 210106.8419 | H44: ='6. Historical Wholesale'!H44 -> 66486 | I44: =I43 -> 0.771 | J44: 51260.706 | L44: ='6. Historical Wholesale'!L44 -> 61713 | M44: =M43 -> 1.7493 | N44: 107954.5509 | P44: 159215.2569
B45: March | D45: ='6. Historical Wholesale'!D45 -> 64274.58 | E45: 3.1942 | F45: 205305.8634 | H45: ='6. Historical Wholesale'!H45 -> 64475 | I45: 0.771 | J45: 49710.225 | L45: ='6. Historical Wholesale'!L45 -> 59609 | M45: 1.7493 | N45: 104274.0237 | P45: 153984.2487
B46: April | D46: ='6. Historical Wholesale'!D46 -> 61818.3 | E46: 3.1942 | F46: 197460.0139 | H46: ='6. Historical Wholesale'!H46 -> 62152 | I46: 0.771 | J46: 47919.192 | L46: ='6. Historical Wholesale'!L46 -> 57738 | M46: 1.7493 | N46: 101001.0834 | P46: 148920.2754
B47: May | D47: ='6. Historical Wholesale'!D47 -> 65438.9 | E47: 3.1942 | F47: 209024.9344 | H47: ='6. Historical Wholesale'!H47 -> 67770 | I47: 0.771 | J47: 52250.67 | L47: ='6. Historical Wholesale'!L47 -> 63359 | M47: 1.7493 | N47: 110833.8987 | P47: 163084.5687
B48: June | D48: ='6. Historical Wholesale'!D48 -> 75043.81 | E48: 3.1942 | F48: 239704.9379 | H48: ='6. Historical Wholesale'!H48 -> 80522 | I48: 0.771 | J48: 62082.462 | L48: ='6. Historical Wholesale'!L48 -> 75392 | M48: 1.7493 | N48: 131883.2256 | P48: 193965.6876
B49: July | D49: ='6. Historical Wholesale'!D49 -> 76883.13 | E49: 3.1942 | F49: 245580.0938 | H49: ='6. Historical Wholesale'!H49 -> 78090 | I49: 0.771 | J49: 60207.39 | L49: ='6. Historical Wholesale'!L49 -> 72747 | M49: 1.7493 | N49: 127256.3271 | P49: 187463.7171
B50: August | D50: ='6. Historical Wholesale'!D50 -> 79677.62 | E50: 3.1942 | F50: 254506.2538 | H50: ='6. Historical Wholesale'!H50 -> 79916 | I50: 0.771 | J50: 61615.236 | L50: ='6. Historical Wholesale'!L50 -> 74580 | M50: 1.7493 | N50: 130462.794 | P50: 192078.03
B51: September | D51: ='6. Historical Wholesale'!D51 -> 79985.06 | E51: 3.1942 | F51: 255488.2787 | H51: ='6. Historical Wholesale'!H51 -> 81319 | I51: 0.771 | J51: 62696.949 | L51: ='6. Historical Wholesale'!L51 -> 75624 | M51: 1.7493 | N51: 132289.0632 | P51: 194986.0122
B52: October | D52: ='6. Historical Wholesale'!D52 -> 61859.5 | E52: 3.1942 | F52: 197591.6149 | H52: ='6. Historical Wholesale'!H52 -> 62233 | I52: 0.771 | J52: 47981.643 | L52: ='6. Historical Wholesale'!L52 -> 57356 | M52: 1.7493 | N52: 100332.8508 | P52: 148314.4938
B53: November | D53: ='6. Historical Wholesale'!D53 -> 65733.59 | E53: 3.1942 | F53: 209966.2332 | H53: ='6. Historical Wholesale'!H53 -> 65957 | I53: 0.771 | J53: 50852.847 | L53: ='6. Historical Wholesale'!L53 -> 60762 | M53: 1.7493 | N53: 106290.9666 | P53: 157143.8136
B54: December | D54: ='6. Historical Wholesale'!D54 -> 84650.78 | E54: 3.1942 | F54: 270391.5215 | H54: ='6. Historical Wholesale'!H54 -> 84975.51 | I54: 0.771 | J54: 65516.11821 | L54: ='6. Historical Wholesale'!L54 -> 79628.51 | M54: 1.7493 | N54: 139294.1525 | P54: 204810.2708
B56: Total | D56: =SUM(D43:D54) -> 849905.09 | E56: =IF(D56<>0,F56/D56,0) -> 3.1942 | F56: =SUM(F43:F54) -> 2714766.838 | H56: =SUM(H43:H54) -> 862760.51 | I56: =IF(H56<>0,J56/H56,0) -> 0.771 | J56: =SUM(J43:J54) -> 665188.3532 | L56: =SUM(L43:L54) -> 802077.51 | M56: =IF(L56<>0,N56/L56,0) -> 1.7493 | N56: =SUM(N43:N54) -> 1403074.188 | P56: =SUM(P43:P54) -> 2068262.541
B58: ='6. Historical Wholesale'!B58 -> Add Extra Host Here (I) | D58: Network | H58: Line Connection | L58: Transformation Connection | P58: Total Line
B60: Month | D60: Units Billed | E60: Rate | F60: Amount | H60: Units Billed | I60: Rate | J60: Amount | L60: Units Billed | M60: Rate | N60: Amount | P60: Amount
B62: January | D62: ='6. Historical Wholesale'!D62 -> 0 | E62: ='5. UTRs and Sub-Transmission'!J51 -> 0 | F62: =D62*E62 -> 0 | H62: ='6. Historical Wholesale'!H62 -> 0 | I62: ='5. UTRs and Sub-Transmission'!J53 -> 0 | J62: =H62*I62 -> 0 | L62: ='6. Historical Wholesale'!L62 -> 0 | M62: ='5. UTRs and Sub-Transmission'!J55 -> 0 | N62: =L62*M62 -> 0 | P62: =J62+N62 -> 0
B63: February | D63: ='6. Historical Wholesale'!D63 -> 0 | E63: =E62 -> 0 | F63: 0 | H63: ='6. Historical Wholesale'!H63 -> 0 | I63: =I62 -> 0 | J63: 0 | L63: ='6. Historical Wholesale'!L63 -> 0 | M63: =M62 -> 0 | N63: 0 | P63: 0
B64: March | D64: ='6. Historical Wholesale'!D64 -> 0 | E64: 0 | F64: 0 | H64: ='6. Historical Wholesale'!H64 -> 0 | I64: 0 | J64: 0 | L64: ='6. Historical Wholesale'!L64 -> 0 | M64: 0 | N64: 0 | P64: 0
B65: April | D65: ='6. Historical Wholesale'!D65 -> 0 | E65: 0 | F65: 0 | H65: ='6. Historical Wholesale'!H65 -> 0 | I65: 0 | J65: 0 | L65: ='6. Historical Wholesale'!L65 -> 0 | M65: 0 | N65: 0 | P65: 0
B66: May | D66: ='6. Historical Wholesale'!D66 -> 0 | E66: 0 | F66: 0 | H66: ='6. Historical Wholesale'!H66 -> 0 | I66: 0 | J66: 0 | L66: ='6. Historical Wholesale'!L66 -> 0 | M66: 0 | N66: 0 | P66: 0
B67: June | D67: ='6. Historical Wholesale'!D67 -> 0 | E67: 0 | F67: 0 | H67: ='6. Historical Wholesale'!H67 -> 0 | I67: 0 | J67: 0 | L67: ='6. Historical Wholesale'!L67 -> 0 | M67: 0 | N67: 0 | P67: 0
B68: July | D68: ='6. Historical Wholesale'!D68 -> 0 | E68: 0 | F68: 0 | H68: ='6. Historical Wholesale'!H68 -> 0 | I68: 0 | J68: 0 | L68: ='6. Historical Wholesale'!L68 -> 0 | M68: 0 | N68: 0 | P68: 0
B69: August | D69: ='6. Historical Wholesale'!D69 -> 0 | E69: 0 | F69: 0 | H69: ='6. Historical Wholesale'!H69 -> 0 | I69: 0 | J69: 0 | L69: ='6. Historical Wholesale'!L69 -> 0 | M69: 0 | N69: 0 | P69: 0
B70: September | D70: ='6. Historical Wholesale'!D70 -> 0 | E70: 0 | F70: 0 | H70: ='6. Historical Wholesale'!H70 -> 0 | I70: 0 | J70: 0 | L70: ='6. Historical Wholesale'!L70 -> 0 | M70: 0 | N70: 0 | P70: 0
B71: October | D71: ='6. Historical Wholesale'!D71 -> 0 | E71: 0 | F71: 0 | H71: ='6. Historical Wholesale'!H71 -> 0 | I71: 0 | J71: 0 | L71: ='6. Historical Wholesale'!L71 -> 0 | M71: 0 | N71: 0 | P71: 0
B72: November | D72: ='6. Historical Wholesale'!D72 -> 0 | E72: 0 | F72: 0 | H72: ='6. Historical Wholesale'!H72 -> 0 | I72: 0 | J72: 0 | L72: ='6. Historical Wholesale'!L72 -> 0 | M72: 0 | N72: 0 | P72: 0
B73: December | D73: ='6. Historical Wholesale'!D73 -> 0 | E73: 0 | F73: 0 | H73: ='6. Historical Wholesale'!H73 -> 0 | I73: 0 | J73: 0 | L73: ='6. Historical Wholesale'!L73 -> 0 | M73: 0 | N73: 0 | P73: 0
B75: Total | D75: =SUM(D62:D73) -> 0 | E75: =IF(D75<>0,F75/D75,0) -> 0 | F75: =SUM(F62:F73) -> 0 | H75: =SUM(H62:H73) -> 0 | I75: =IF(H75<>0,J75/H75,0) -> 0 | J75: =SUM(J62:J73) -> 0 | L75: =SUM(L62:L73) -> 0 | M75: =IF(L75<>0,N75/L75,0) -> 0 | N75: =SUM(N62:N73) -> 0 | P75: =SUM(P62:P73) -> 0
B77: ='6. Historical Wholesale'!B77 -> Add Extra Host Here (II) | D77: Network | H77: Line Connection | L77: Transformation Connection | P77: Total Line
B79: Month | D79: Units Billed | E79: Rate | F79: Amount | H79: Units Billed | I79: Rate | J79: Amount | L79: Units Billed | M79: Rate | N79: Amount | P79: Amount
B81: January | D81: ='6. Historical Wholesale'!D81 -> 0 | E81: ='5. UTRs and Sub-Transmission'!J66 -> 0 | F81: =D81*E81 -> 0 | H81: ='6. Historical Wholesale'!H81 -> 0 | I81: ='5. UTRs and Sub-Transmission'!J68 -> 0 | J81: =H81*I81 -> 0 | L81: ='6. Historical Wholesale'!L81 -> 0 | M81: ='5. UTRs and Sub-Transmission'!J70 -> 0 | N81: =L81*M81 -> 0 | P81: =J81+N81 -> 0
B82: February | D82: ='6. Historical Wholesale'!D82 -> 0 | E82: =E81 -> 0 | F82: 0 | H82: ='6. Historical Wholesale'!H82 -> 0 | I82: =I81 -> 0 | J82: 0 | L82: ='6. Historical Wholesale'!L82 -> 0 | M82: =M81 -> 0 | N82: 0 | P82: 0
B83: March | D83: ='6. Historical Wholesale'!D83 -> 0 | E83: 0 | F83: 0 | H83: ='6. Historical Wholesale'!H83 -> 0 | I83: 0 | J83: 0 | L83: ='6. Historical Wholesale'!L83 -> 0 | M83: 0 | N83: 0 | P83: 0
B84: April | D84: ='6. Historical Wholesale'!D84 -> 0 | E84: 0 | F84: 0 | H84: ='6. Historical Wholesale'!H84 -> 0 | I84: 0 | J84: 0 | L84: ='6. Historical Wholesale'!L84 -> 0 | M84: 0 | N84: 0 | P84: 0
B85: May | D85: ='6. Historical Wholesale'!D85 -> 0 | E85: 0 | F85: 0 | H85: ='6. Historical Wholesale'!H85 -> 0 | I85: 0 | J85: 0 | L85: ='6. Historical Wholesale'!L85 -> 0 | M85: 0 | N85: 0 | P85: 0
B86: June | D86: ='6. Historical Wholesale'!D86 -> 0 | E86: 0 | F86: 0 | H86: ='6. Historical Wholesale'!H86 -> 0 | I86: 0 | J86: 0 | L86: ='6. Historical Wholesale'!L86 -> 0 | M86: 0 | N86: 0 | P86: 0
B87: July | D87: ='6. Historical Wholesale'!D87 -> 0 | E87: 0 | F87: 0 | H87: ='6. Historical Wholesale'!H87 -> 0 | I87: 0 | J87: 0 | L87: ='6. Historical Wholesale'!L87 -> 0 | M87: 0 | N87: 0 | P87: 0
B88: August | D88: ='6. Historical Wholesale'!D88 -> 0 | E88: 0 | F88: 0 | H88: ='6. Historical Wholesale'!H88 -> 0 | I88: 0 | J88: 0 | L88: ='6. Historical Wholesale'!L88 -> 0 | M88: 0 | N88: 0 | P88: 0
B89: September | D89: ='6. Historical Wholesale'!D89 -> 0 | E89: 0 | F89: 0 | H89: ='6. Historical Wholesale'!H89 -> 0 | I89: 0 | J89: 0 | L89: ='6. Historical Wholesale'!L89 -> 0 | M89: 0 | N89: 0 | P89: 0
B90: October | D90: ='6. Historical Wholesale'!D90 -> 0 | E90: 0 | F90: 0 | H90: ='6. Historical Wholesale'!H90 -> 0 | I90: 0 | J90: 0 | L90: ='6. Historical Wholesale'!L90 -> 0 | M90: 0 | N90: 0 | P90: 0
B91: November | D91: ='6. Historical Wholesale'!D91 -> 0 | E91: 0 | F91: 0 | H91: ='6. Historical Wholesale'!H91 -> 0 | I91: 0 | J91: 0 | L91: ='6. Historical Wholesale'!L91 -> 0 | M91: 0 | N91: 0 | P91: 0
B92: December | D92: ='6. Historical Wholesale'!D92 -> 0 | E92: 0 | F92: 0 | H92: ='6. Historical Wholesale'!H92 -> 0 | I92: 0 | J92: 0 | L92: ='6. Historical Wholesale'!L92 -> 0 | M92: 0 | N92: 0 | P92: 0
B94: Total | D94: =SUM(D81:D92) -> 0 | E94: =IF(D94<>0,F94/D94,0) -> 0 | F94: =SUM(F81:F92) -> 0 | H94: =SUM(H81:H92) -> 0 | I94: =IF(H94<>0,J94/H94,0) -> 0 | J94: =SUM(J81:J92) -> 0 | L94: =SUM(L81:L92) -> 0 | M94: =IF(L94<>0,N94/L94,0) -> 0 | N94: =SUM(N81:N92) -> 0 | P94: =SUM(P81:P92) -> 0
B96: Total | D96: Network | H96: Line Connection | L96: Transformation Connection | P96: Total Line
B98: Month | D98: Units Billed | E98: Rate | F98: Amount | H98: Units Billed | I98: Rate | J98: Amount | L98: Units Billed | M98: Rate | N98: Amount | P98: Amount
B100: January | D100: =D24+D43+D62+D81 -> 77199.21 | E100: =IF(D100<>0,F100/D100,0) -> 3.239642234 | F100: =F24+F43+F62+F81 -> 250097.8212 | H100: =H24+H43+H62+H81 -> 78791 | I100: =IF(H100<>0,J100/H100,0) -> 0.7935502151 | J100: =J24+J43+J62+J81 -> 62524.615 | L100: =L24+L43+L62+L81 -> 73495 | M100: =IF(L100<>0,N100/L100,0) -> 1.829078056 | N100: =N24+N43+N62+N81 -> 134428.0917 | P100: =J100+N100 -> 196952.7067
B101: February | D101: =D25+D44+D63+D82 -> 75046.61 | E101: 3.24555542 | F101: 243567.9319 | H101: =H25+H44+H63+H82 -> 76434 | I101: 0.7942971191 | J101: =J25+J44+J63+J82 -> 60711.306 | L101: =L25+L44+L63+L82 -> 71661 | M101: 1.831301139 | N101: =N25+N44+N63+N82 -> 131232.8709 | P101: 191944.1769
B102: March | D102: 71946.58 | E102: 3.238538697 | F102: 233001.7834 | H102: =H26+H45+H64+H83 -> 73501 | I102: 0.792981388 | J102: =J26+J45+J64+J83 -> 58284.925 | L102: =L26+L45+L64+L83 -> 68635 | M102: 1.826981332 | N102: =N26+N45+N64+N83 -> 125394.8637 | P102: 183679.7887
B103: April | D103: 69362.3 | E103: 3.239423345 | F103: 224693.8539 | H103: =H27+H46+H65+H84 -> 71027 | I103: 0.7933664944 | J103: =J27+J46+J65+J84 -> 56350.442 | L103: =L27+L46+L65+L84 -> 66613 | M103: 1.828000291 | N103: =N27+N46+N65+N84 -> 121768.5834 | P103: 178119.0254
B104: May | D104: 72887.9 | E104: 3.236693942 | F104: 235915.8244 | H104: =H28+H47+H66+H85 -> 77068 | I104: 0.7925957596 | J104: =J28+J47+J66+J85 -> 61083.77 | L104: =L28+L47+L66+L85 -> 72657 | M104: 1.82489256 | N104: =N28+N47+N66+N85 -> 132591.2187 | P104: 193674.9887
B105: June | D105: 86160.81 | E105: 3.247849085 | F105: 279837.3079 | H105: =H29+H48+H67+H86 -> 91639 | I105: 0.7927150231 | J105: =J29+J48+J67+J86 -> 72643.612 | L105: =L29+L48+L67+L86 -> 86509 | M105: 1.825209003 | N105: =N29+N48+N67+N86 -> 157897.0056 | P105: 230540.6176
B106: July | D106: 89687.13 | E106: 3.253560838 | F106: 291802.5338 | H106: =H30+H49+H68+H87 -> 93153 | I106: 0.7999446073 | J106: =J30+J49+J68+J87 -> 74517.24 | L106: =L30+L49+L68+L87 -> 87810 | M106: 1.850629166 | N106: =N30+N49+N68+N87 -> 162503.7471 | P106: 237020.9871
B107: August | D107: 89138.62 | E107: 3.238332204 | F107: 288660.4638 | H107: =H31+H50+H69+H88 -> 89576 | I107: 0.7903036081 | J107: =J31+J50+J69+J88 -> 70792.236 | L107: =L31+L50+L69+L88 -> 84240 | M107: 1.817036966 | N107: =N31+N50+N69+N88 -> 153067.194 | P107: 223859.43
B108: September | D108: 88327.06 | E108: 3.233469999 | F108: 285602.8987 | H108: =H32+H51+H70+H89 -> 90617 | I108: 0.7893667744 | J108: =J32+J51+J70+J89 -> 71530.049 | L108: =L32+L51+L70+L89 -> 84922 | M108: 1.813974979 | N108: =N32+N51+N70+N89 -> 154046.3832 | P108: 225576.4322
B109: October | D109: 67656.5 | E109: 3.229826918 | F109: 218518.7849 | H109: =H33+H52+H71+H90 -> 69053 | I109: 0.7886788843 | J109: =J33+J52+J71+J90 -> 54460.643 | L109: =L33+L52+L71+L90 -> 64176 | M109: 1.812073841 | N109: =N33+N52+N71+N90 -> 116291.6508 | P109: 170752.2938
B110: November | D110: 73175.59 | E110: 3.236487101 | F110: 236831.8532 | H110: =H34+H53+H72+H91 -> 74712 | I110: 0.7919758138 | J110: =J34+J53+J72+J91 -> 59170.097 | L110: =L34+L53+L72+L91 -> 69517 | M110: 1.823693005 | N110: =N34+N53+N72+N91 -> 126777.6666 | P110: 185947.7636
B111: December | D111: 92666.78 | E111: 3.230168152 | F111: 299329.2815 | H111: =H35+H54+H73+H92 -> 94405.51 | I111: 0.7888799945 | J111: =J35+J54+J73+J92 -> 74474.61821 | L111: =L35+L54+L73+L92 -> 89058.51 | M111: 1.811846533 | N111: =N35+N54+N73+N92 -> 161360.3525 | P111: 235834.9708
B113: Total | D113: =SUM(D100:D111) -> 953255.09 | E113: =IF(D113<>0,F113/D113,0) -> 3.2392802 | F113: =SUM(F100:F111) -> 3087860.338 | H113: =SUM(H100:H111) -> 979976.51 | I113: =IF(H113<>0,J113/H113,0) -> 0.7924103744 | J113: =SUM(J100:J111) -> 776543.5532 | L113: =SUM(L100:L111) -> 919293.51 | M113: =IF(L113<>0,N113/L113,0) -> 1.824618155 | N113: =SUM(N100:N111) -> 1677359.628 | P113: =SUM(P100:P111) -> 2453903.181
N115: Low Voltage Switchgear Credit (if applicable) | P115: ='5. UTRs and Sub-Transmission'!J75 -> 0
N117: Total including deduction for Low Voltage Switchgear Credit | P117: =P113+P115 -> 2453903.181

Sheet 9. RTSR Rates to Forecast
A13: The purpose of this sheet is to re-align the current RTS Network Rates to recover current wholesale network costs.
A15: Rate Class | B15: Rate Description | C15: Unit | D15: Current RTSR-Network | E15: Loss Adjusted Billed kWh | F15: Billed kW | G15: Billed Amount | H15: Billed Amount % | I15: Current Wholesale Billing | J15: Adjusted RTSR Network
A17: Residential | B17: RTSR - Network | C17: kWh | D17: 0.0063 | E17: 141938165.3 | F17: 0 | G17: =ROUND(D17*E17, 2) -> 894210.44 | H17: =G17/3199747.86 -> 0.2794627824 | I17: =H17*total_current_wholesale_network -> 864386.1658 | J17: =IF(ISERROR(I17/E17), 0, I17/E17) -> 0.006089878394
A18: General Service Less Than 50 kW | B18: RTSR - Network | C18: kWh | D18: 0.0059 | E18: 50160621.69 | F18: 0 | G18: =ROUND(D18*E18, 2) -> 295947.67 | H18: 0.09249093458 | I18: 286077.0355 | J18: =IF(ISERROR(I18/E18), 0, I18/E18) -> 0.005703219494
A19: General Service 50 to 999 kW | B19: RTSR - Network | C19: kW | D19: 2.6482 | F19: 272810 | G19: =ROUND(D19*F19, 2) -> 722455.44 | H19: 0.2257851155 | I19: 698359.6476 | J19: =IF(ISERROR(I19/F19), 0, I19/F19) -> 2.559875546
A20: General Service 1,000 to 4,999 kW | B20: RTSR - Network | C20: kW | D20: 2.8748 | F20: 197271 | G20: =ROUND(D20*F20, 2) -> 567114.67 | H20: 0.1772372996 | I20: 548199.9016 | J20: =IF(ISERROR(I20/F20), 0, I20/F20) -> 2.778917842
A21: Large Use | B21: RTSR - Network | C21: kW | D21: 3.1869 | F21: 177134 | G21: =ROUND(D21*F21, 2) -> 564508.34 | H21: 0.1764227573 | I21: 545680.4995 | J21: =IF(ISERROR(I21/F21), 0, I21/F21) -> 3.080608463
A22: Unmetered Scattered Load | B22: RTSR - Network | C22: kWh | D22: 0.0059 | E22: 537556.5909 | G22: =ROUND(D22*E22, 2) -> 3171.58 | H22: 0.0009911968501 | I22: 3065.799451 | J22: =IF(ISERROR(I22/E22), 0, I22/E22) -> 0.005703212467
A23: Sentinel Lighting | B23: RTSR - Network | C23: kWh | D23: 0.0059 | E23: 230459.1814 | F23: 574.0686383 | G23: =ROUND(D23*E23, 2) -> 1359.71 | H23: 0.0004249428578 | I23: 1314.360089 | J23: =IF(ISERROR(I23/E23), 0, I23/E23) -> 0.005703222936
A24: Street Lighting | B24: RTSR - Network | C24: kW | D24: 2.0441 | F24: 5395 | G24: =ROUND(D24*F24, 2) -> 11027.92 | H24: 0.003446496562 | I24: 10660.10981 | J24: =IF(ISERROR(I24/F24), 0, I24/F24) -> 1.975923969
A25: Embedded Distributor | B25: RTSR - Network | C25: kW | D25: 3.846 | F25: 36389 | G25: =ROUND(D25*F25, 2) -> 139952.09 | H25: 0.04373847444 | I25: 135284.3191 | J25: =IF(ISERROR(I25/F25), 0, I25/F25) -> 3.717725661
A27: The purpose of this table is to re-align the current RTS Connection Rates to recover current wholesale connection costs.
A28: Rate Class | B28: Rate Description | C28: Unit | D28: Current RTSR-Connection | E28: Loss Adjusted Billed kWh | F28: Billed kW | G28: Billed Amount | H28: Billed Amount % | I28: Current Wholesale Billing | J28: Adjusted RTSR-Connection
A30: Residential | B30: RTSR - Connection | C30: kWh | D30: 0.0056 | E30: 141938165.3 | F30: 0 | G30: =ROUND(D30*E30, 2) -> 794853.73 | H30: =G30/2476723.76 -> 0.3209295049 | I30: =H30*Total_Current_Wholesale_Lineplus -> 772482.7039 | J30: =IF(ISERROR(I30/E30), 0, I30/E30) -> 0.005442388962
A31: General Service Less Than 50 kW | B31: RTSR - Connection | C31: kWh | D31: 0.0052 | E31: 50160621.69 | F31: 0 | G31: =ROUND(D31*E31, 2) -> 260835.23 | H31: 0.1053146234 | I31: 253494.0658 | J31: =IF(ISERROR(I31/E31), 0, I31/E31) -> 0.00505364681
A32: General Service 50 to 999 kW | B32: RTSR - Connection | C32: kW | D32: 1.8703 | F32: 272810 | G32: =ROUND(D32*F32, 2) -> 510236.54 | H32: 0.2060126964 | I32: 495876.0174 | J32: =IF(ISERROR(I32/F32), 0, I32/F32) -> 1.817660707
A33: General Service 1,000 to 4,999 kW | B33: RTSR - Connection | C33: kW | D33: 2.0036 | F33: 197271 | G33: =ROUND(D33*F33, 2) -> 395252.18 | H33: 0.1595867034 | I33: 384127.8731 | J33: =IF(ISERROR(I33/F33), 0, I33/F33) -> 1.947209033
A34: Large Use | B34: RTSR - Connection | C34: kW | D34: 2.2727 | F34: 177134 | G34: =ROUND(D34*F34, 2) -> 402572.44 | H34: 0.1625423257 | I34: 391242.1056 | J34: =IF(ISERROR(I34/F34), 0, I34/F34) -> 2.208735226
A35: Unmetered Scattered Load | B35: RTSR - Connection | C35: kWh | D35: 0.0052 | E35: 537556.5909 | G35: =ROUND(D35*E35, 2) -> 2795.29 | H35: 0.00112862405 | I35: 2716.617028 | J35: =IF(ISERROR(I35/E35), 0, I35/E35) -> 0.00505363914
A36: Sentinel Lighting | B36: RTSR - Connection | C36: kWh | D36: 0.0052 | E36: 230459.1814 | F36: 574.0686383 | G36: =ROUND(D36*E36, 2) -> 1198.39 | H36: 0.0004838609858 | I36: 1164.661513 | J36: =IF(ISERROR(I36/E36), 0, I36/E36) -> 0.005053656381
A37: Street Lighting | B37: RTSR - Connection | C37: kW | D37: 2.378 | F37: 5395 | G37: =ROUND(D37*F37, 2) -> 12829.31 | H37: 0.005179951922 | I37: 12468.2312 | J37: =IF(ISERROR(I37/F37), 0, I37/F37) -> 2.311071585
A38: Embedded Distributor | B38: RTSR - Connection | C38: kW | D38: 2.6423 | F38: 36389 | G38: =ROUND(D38*F38, 2) -> 96150.65 | H38: 0.03882170937 | I38: 93444.50594 | J38: =IF(ISERROR(I38/F38), 0, I38/F38) -> 2.56793278
A40: The purpose of this table is to update the re-aligned RTS Network Rates to recover future wholesale network costs.
A41: Rate Class | B41: Rate Description | C41: Unit | D41: Adjusted RTSR-Network | E41: Loss Adjusted Billed kWh | F41: Billed kW | G41: Billed Amount | H41: Billed Amount % | I41: Current Wholesale Billing | J41: Proposed RTSR-Network
A43: Residential | B43: RTSR - Network | C43: kWh | D43: 0.006089878394 | E43: 141938165.3 | F43: 0 | G43: =IF(ISERROR(D43*E43), 0, ROUND(D43*E43, 2)) -> 864386.17 | H43: =G43/3093027.85 -> 0.2794627827 | I43: =H43*forecast_wholesale_network -> 862942.0429 | J43: =IF(ISERROR(I43/E43), 0, I43/E43) -> 0.006079704083
A44: General Service Less Than 50 kW | B44: RTSR - Network | C44: kWh | D44: 0.005703219494 | E44: 50160621.69 | F44: 0 | G44: =IF(ISERROR(D44*E44), 0, ROUND(D44*E44, 2)) -> 286077.04 | H44: 0.0924909357 | I44: 285599.092 | J44: =IF(ISERROR(I44/E44), 0, I44/E44) -> 0.005693691234
A45: General Service 50 to 999 kW | B45: RTSR - Network | C45: kW | D45: 2.559875546 | F45: 272810 | G45: =ROUND(D45*F45, 2) -> 698359.65 | H45: 0.2257851154 | I45: 697192.9028 | J45: =IF(ISERROR(I45/F45), 0, I45/F45) -> 2.555598779
A46: General Service 1,000 to 4,999 kW | B46: RTSR - Network | C46: kW | D46: 2.778917842 | F46: 197271 | G46: =ROUND(D46*F46, 2) -> 548199.9 | H46: 0.1772372984 | I46: 547284.0242 | J46: =IF(ISERROR(I46/F46), 0, I46/F46) -> 2.774275105
A47: Large Use | B47: RTSR - Network | C47: kW | D47: 3.080608463 | F47: 177134 | G47: =ROUND(D47*F47, 2) -> 545680.5 | H47: 0.1764227567 | I47: 544768.8334 | J47: =IF(ISERROR(I47/F47), 0, I47/F47) -> 3.075461703
A48: Unmetered Scattered Load | B48: RTSR - Network | C48: kWh | D48: 0.005703212467 | E48: 537556.5909 | G48: =IF(ISERROR(D48*E48), 0, ROUND(D48*E48, 2)) -> 3065.8 | H48: 0.000991197024 | I48: 3060.677978 | J48: =IF(ISERROR(I48/E48), 0, I48/E48) -> 0.005693685148
A49: Sentinel Lighting | B49: RTSR - Network | C49: kWh | D49: 0.005703222936 | E49: 230459.1814 | F49: 574.0686383 | G49: =IF(ISERROR(D49*E49), 0, ROUND(D49*E49, 2)) -> 1314.36 | H49: 0.0004249428275 | I49: 1312.164103 | J49: =IF(ISERROR(I49/E49), 0, I49/E49) -> 0.005693694194
A50: Street Lighting | B50: RTSR - Network | C50: kW | D50: 1.975923969 | F50: 5395 | G50: =ROUND(D50*F50, 2) -> 10660.11 | H50: 0.00344649661 | I50: 10642.30019 | J50: =IF(ISERROR(I50/F50), 0, I50/F50) -> 1.972622834
A51: Embedded Distributor | B51: RTSR - Network | C51: kW | D51: 3.717725661 | F51: 36389 | G51: =ROUND(D51*F51, 2) -> 135284.32 | H51: 0.04373847458 | I51: 135058.3009 | J51: =IF(ISERROR(I51/F51), 0, I51/F51) -> 3.711514494
A53: The purpose of this table is to update the re-aligned RTS Connection Rates to recover future wholesale connection costs.
A54: Rate Class | B54: Rate Description | C54: Unit | D54: Adjusted RTSR-Connection | E54: Loss Adjusted Billed kWh | F54: Billed kW | G54: Billed Amount | H54: Billed Amount % | I54: Current Wholesale Billing | J54: Proposed RTSR-Connection
A56: Residential | B56: RTSR - Connection | C56: kWh | D56: 0.005442388962 | E56: 141938165.3 | F56: 0 | G56: =ROUND(D56*E56, 2) -> 772482.7 | H56: =G56/2407016.79 -> 0.3209295021 | I56: =H56*forecast_wholesale_lineplus -> 787529.9263 | J56: =IF(ISERROR(I56/E56), 0, I56/E56) -> 0.005548401481
A57: General Service Less Than 50 kW | B57: RTSR - Connection | C57: kWh | D57: 0.00505364681 | E57: 50160621.69 | F57: 0 | G57: =ROUND(D57*E57, 2) -> 253494.07 | H57: 0.1053146247 | I57: 258431.8927 | J57: =IF(ISERROR(I57/E57), 0, I57/E57) -> 0.005152087116
A58: General Service 50 to 999 kW | B58: RTSR - Connection | C58: kW | D58: 1.817660707 | F58: 272810 | G58: =ROUND(D58*F58, 2) -> 495876.02 | H58: 0.2060126967 | I58: 505535.2119 | J58: =IF(ISERROR(I58/F58), 0, I58/F58) -> 1.853067013
A59: General Service 1,000 to 4,999 kW | B59: RTSR - Connection | C59: kW | D59: 1.947209033 | F59: 197271 | G59: =ROUND(D59*F59, 2) -> 384127.87 | H59: 0.1595867015 | I59: 391610.3146 | J59: =IF(ISERROR(I59/F59), 0, I59/F59) -> 1.985138792
A60: Large Use | B60: RTSR - Connection | C60: kW | D60: 2.208735226 | F60: 177134 | G60: =ROUND(D60*F60, 2) -> 391242.11 | H60: 0.1625423269 | I60: 398863.1332 | J60: =IF(ISERROR(I60/F60), 0, I60/F60) -> 2.251759307
A61: Unmetered Scattered Load | B61: RTSR - Connection | C61: kWh | D61: 0.00505363914 | E61: 537556.5909 | G61: =ROUND(D61*E61, 2) -> 2716.62 | H61: 0.001128625281 | I61: 2769.537167 | J61: =IF(ISERROR(I61/E61), 0, I61/E61) -> 0.005152084848
A62: Sentinel Lighting | B62: RTSR - Connection | C62: kWh | D62: 0.005053656381 | E62: 230459.1814 | F62: 574.0686383 | G62: =ROUND(D62*E62, 2) -> 1164.66 | H62: 0.0004838603556 | I62: 1187.346466 | J62: =IF(ISERROR(I62/E62), 0, I62/E62) -> 0.005152090096
A63: Street Lighting | B63: RTSR - Connection | C63: kW | D63: 2.311071585 | F63: 5395 | G63: =ROUND(D63*F63, 2) -> 12468.23 | H63: 0.005179951404 | I63: 12711.09923 | J63: =IF(ISERROR(I63/F63), 0, I63/F63) -> 2.356088828
A64: Embedded Distributor | B64: RTSR - Connection | C64: kW | D64: 2.56793278 | F64: 36389 | G64: =ROUND(D64*F64, 2) -> 93444.51 | H64: 0.03882171092 | I64: 95264.71994 | J64: =IF(ISERROR(I64/F64), 0, I64/F64) -> 2.617953775

Sheet hidden1 (hidden)
A1: =IF('3. Rate Classes'!L17=1, '3. Rate Classes'!C17, "") -> Residential | B1: 1
A2: =IF('3. Rate Classes'!L18=1, '3. Rate Classes'!C18, "") -> General Service Less Than 50 kW | B2: 2
A3: =IF('3. Rate Classes'!L19=1, '3. Rate Classes'!C19, "") -> General Service 50 to 999 kW | B3: 3
A4: =IF('3. Rate Classes'!L20=1, '3. Rate Classes'!C20, "") -> General Service 1,000 to 4,999 kW | B4: 4
A5: =IF('3. Rate Classes'!L21=1, '3. Rate Classes'!C21, "") -> Large Use | B5: 5
A6: =IF('3. Rate Classes'!L22=1, '3. Rate Classes'!C22, "") -> Unmetered Scattered Load | B6: 6
A7: =IF('3. Rate Classes'!L23=1, '3. Rate Classes'!C23, "") -> Sentinel Lighting | B7: 7
A8: =IF('3. Rate Classes'!L24=1, '3. Rate Classes'!C24, "") -> Street Lighting | B8: 8
A9: =IF('3. Rate Classes'!L25=1, '3. Rate Classes'!C25, "") -> Embedded Distributor | B9: 9
A10: =IF('3. Rate Classes'!L26=1, '3. Rate Classes'!C26, "") ->  | B10: 10
A11: =IF('3. Rate Classes'!L27=1, '3. Rate Classes'!C27, "") ->  | B11: 11
A12: =IF('3. Rate Classes'!L28=1, '3. Rate Classes'!C28, "") ->  | B12: 12
A13: =IF('3. Rate Classes'!L29=1, '3. Rate Classes'!C29, "") ->  | B13: 13
A14: =IF('3. Rate Classes'!L30=1, '3. Rate Classes'!C30, "") ->  | B14: 14
A15: =IF('3. Rate Classes'!L31=1, '3. Rate Classes'!C31, "") ->  | B15: 15
A16: =IF('3. Rate Classes'!L32=1, '3. Rate Classes'!C32, "") ->  | B16: 16
A17: =IF('3. Rate Classes'!L33=1, '3. Rate Classes'!C33, "") ->  | B17: 17
A18: =IF('3. Rate Classes'!L34=1, '3. Rate Classes'!C34, "") ->  | B18: 18
A19: =IF('3. Rate Classes'!L35=1, '3. Rate Classes'!C35, "") ->  | B19: 19
A20: =IF('3. Rate Classes'!L36=1, '3. Rate Classes'!C36, "") ->  | B20: 20
A21: =IF('3. Rate Classes'!L37=1, '3. Rate Classes'!C37, "") ->  | B21: 21
A22: =IF('3. Rate Classes'!L38=1, '3. Rate Classes'!C38, "") ->  | B22: 22
